﻿Department,Entity, Transaction Date, Expense Type, Expense Area, Supplier Name,Transaction number, Amount, Invoice Description
FCDO,CSC,21/12/2021,Scholar Allowances,Award Costs,Scholar,PIN055309,732,
FCDO,CSC,03/12/2021,Tuition Fee,Award Costs,Bangor University,PIN055388,25515,
FCDO,CSC,03/12/2021,Award Support Costs,Award Costs,Queen Mary University of London,PIN055389,3000,
FCDO,CSC,03/12/2021,Tuition Fee,Programme Costs,University of Strathclyde,PIN055390,3900,
FCDO,CSC,03/12/2021,Tuition Fee,Programme Costs,University of Strathclyde,PIN055391,3900,
FCDO,CSC,03/12/2021,Tuition Fee,Award Costs,University of Strathclyde,PIN055392,3900,
FCDO,CSC,03/12/2021,Tuition Fee,Award Costs,University of Strathclyde,PIN055393,3900,
FCDO,CSC,03/12/2021,Tuition Fee,Award Costs,University of Strathclyde,PIN055394,3900,
FCDO,CSC,03/12/2021,Tuition Fee,Award Costs,University of Strathclyde,PIN055395,3900,
FCDO,CSC,03/12/2021,Tuition Fee,Award Costs,University of Strathclyde,PIN055396,3900,
FCDO,CSC,03/12/2021,Tuition Fee,Award Costs,University of Strathclyde,PIN055397,3900,
FCDO,CSC,03/12/2021,Tuition Fee,Programme Costs,University of Strathclyde,PIN055398,4200,
FCDO,CSC,03/12/2021,Tuition Fee,Award Costs,University of Bath,PIN055399,19160,
FCDO,CSC,03/12/2021,Tuition Fee,Award Costs,The University of Edinburgh,PIN055400,6850,
FCDO,CSC,03/12/2021,Award Support Costs,Award Costs,Imperial College London,PIN055401,5000,
FCDO,CSC,03/12/2021,Tuition Fee,Programme Costs,University of Stirling,PIN055402,3600,
FCDO,CSC,03/12/2021,Tuition Fee,Award Costs,University of Stirling,PIN055403,3750,
FCDO,CSC,03/12/2021,Tuition Fee,Award Costs,University of Stirling,PIN055404,3750,
FCDO,CSC,03/12/2021,Tuition Fee,Programme Costs,University of Stirling,PIN055405,3600,
FCDO,CSC,03/12/2021,Tuition Fee,Award Costs,University of Stirling,PIN055406,4000,
FCDO,CSC,03/12/2021,Tuition Fee,Award Costs,University of Stirling,PIN055407,4000,
FCDO,CSC,03/12/2021,Tuition Fee,Award Costs,University of Stirling,PIN055408,3750,
FCDO,CSC,03/12/2021,Tuition Fee,Programme Costs,University of Stirling,PIN055409,3600,
FCDO,CSC,03/12/2021,Tuition Fee,Award Costs,University of Stirling,PIN055410,3750,
FCDO,CSC,03/12/2021,Tuition Fee,Programme Costs,University of Stirling,PIN055411,3600,
FCDO,CSC,03/12/2021,Tuition Fee,Award Costs,University of Stirling,PIN055412,3750,
FCDO,CSC,03/12/2021,Tuition Fee,Award Costs,University of Portsmouth,PIN055413,2984,
FCDO,CSC,03/12/2021,Engagement,Programme Costs,TFW Printers,PIN055414,4680,
FCDO,CSC,03/12/2021,Scholar Allowances,Award Costs,Diversity Travel,PIN055416,2330,
FCDO,CSC,03/12/2021,Scholar Travel,Award Costs,Diversity Travel,PIN055416,2088.48,
FCDO,CSC,03/12/2021,Fieldwork Airfare,Award Costs,Diversity Travel,PIN055416,1389.74,
FCDO,CSC,03/12/2021,Scholar Travel,Award Costs,Diversity Travel,PIN055416,1193.37,
FCDO,CSC,03/12/2021,Scholar Travel,Award Costs,Diversity Travel,PIN055416,1177.49,
FCDO,CSC,03/12/2021,Scholar Travel,Award Costs,Diversity Travel,PIN055416,1068.3,
FCDO,CSC,03/12/2021,Fieldwork Airfare,Award Costs,Diversity Travel,PIN055416,796.32,
FCDO,CSC,03/12/2021,Scholar Travel,Award Costs,Diversity Travel,PIN055416,759.04,
FCDO,CSC,03/12/2021,Scholar Travel,Award Costs,Diversity Travel,PIN055416,639.48,
FCDO,CSC,03/12/2021,Scholar Travel,Award Costs,Diversity Travel,PIN055416,626.1,
FCDO,CSC,03/12/2021,Scholar Travel,Award Costs,Diversity Travel,PIN055416,612.82,
FCDO,CSC,03/12/2021,Scholar Travel,Award Costs,Diversity Travel,PIN055416,495.66,
FCDO,CSC,03/12/2021,Scholar Travel,Award Costs,Diversity Travel,PIN055416,451.75,
FCDO,CSC,03/12/2021,Scholar Travel,Award Costs,Diversity Travel,PIN055416,425.94,
FCDO,CSC,03/12/2021,Scholar Travel,Award Costs,Diversity Travel,PIN055417,828.74,
FCDO,CSC,03/12/2021,Scholar Travel,Award Costs,Diversity Travel,PIN055417,686.88,
FCDO,CSC,03/12/2021,Scholar Travel,Award Costs,Diversity Travel,PIN055417,679.82,
FCDO,CSC,03/12/2021,Scholar Travel,Award Costs,Diversity Travel,PIN055417,591.5,
FCDO,CSC,03/12/2021,Scholar Travel,Award Costs,Diversity Travel,PIN055417,552.96,
FCDO,CSC,03/12/2021,Scholar Travel,Award Costs,Diversity Travel,PIN055417,496.1,
FCDO,CSC,03/12/2021,Scholar Travel,Award Costs,Diversity Travel,PIN055417,94.3,
FCDO,CSC,03/12/2021,Scholar Travel,Award Costs,Diversity Travel,PIN055417,72.3,
FCDO,CSC,03/12/2021,Scholar Travel,Award Costs,Diversity Travel,PIN055417,64.79,
FCDO,CSC,03/12/2021,Scholar Travel,Award Costs,Diversity Travel,PIN055417,40.7,
FCDO,CSC,03/12/2021,Scholar Travel,Award Costs,Diversity Travel,PIN055417,32.5,
FCDO,CSC,03/12/2021,Scholar Travel,Award Costs,Diversity Travel,PIN055417,27.4,
FCDO,CSC,03/12/2021,Scholar Travel,Award Costs,Diversity Travel,PIN055417,12.6,
FCDO,CSC,02/12/2021,Scholar Allowances,Award Costs,Scholar,PIN055422,433,
FCDO,CSC,02/12/2021,Scholar Stipend,Award Costs,Scholar,PIN055422,770.2,
FCDO,CSC,10/12/2021,Reimbursements,Award Costs,Scholar,PIN055440,850.79,
FCDO,CSC,10/12/2021,Award Support Costs,Award Costs,Knowledge for Change,PIN055442,3800,
FCDO,CSC,10/12/2021,Award Support Costs,Award Costs,The University of Salford,PIN055443,800,
FCDO,CSC,10/12/2021,Award Support Costs,Award Costs,The University of Salford,PIN055443,800,
FCDO,CSC,10/12/2021,Award Support Costs,Award Costs,The University of Salford,PIN055443,3000,
FCDO,CSC,10/12/2021,Award Support Costs,Award Costs,The University of Salford,PIN055443,3000,
FCDO,CSC,10/12/2021,Award Support Costs,Award Costs,University of Surrey,PIN055445,5000,
FCDO,CSC,10/12/2021,Tuition Fee,Award Costs,University of Surrey,PIN055445,18000,
FCDO,CSC,10/12/2021,Tuition Fee,Award Costs,University of Stirling,PIN055448,3750,
FCDO,CSC,10/12/2021,Award Support Costs,Award Costs,University of Aberdeen,PIN055451,5000,
FCDO,CSC,10/12/2021,Tuition Fee,Award Costs,University of Dundee,PIN055452,15160,
FCDO,CSC,10/12/2021,Tuition Fee,Award Costs,Aston University,PIN055453,14080,
FCDO,CSC,10/12/2021,Tuition Fee,Award Costs,Royal Holloway & Bedford New College,PIN055454,18000,
FCDO,CSC,10/12/2021,Scholar Travel,Award Costs,Bangor University,PIN055459,1813.17,
FCDO,CSC,10/12/2021,Scholar Allowances,Award Costs,Bangor University,PIN055460,600,
FCDO,CSC,10/12/2021,Scholar Allowances,Award Costs,Bangor University,PIN055460,675,
FCDO,CSC,10/12/2021,Tuition Fee,Award Costs,Worcester College,PIN055461,18000,
FCDO,CSC,10/12/2021,Award Support Costs,Award Costs,The University of Birmingham,PIN055462,1500,
FCDO,CSC,10/12/2021,Tuition Fee,Award Costs,Linacre College Oxford,PIN055463,18000,
FCDO,CSC,10/12/2021,Tuition Fee,Award Costs,Pembroke College Oxford,PIN055464,18000,
FCDO,CSC,10/12/2021,Tuition Fee,Award Costs,Linacre College Oxford,PIN055465,22500,
FCDO,CSC,10/12/2021,Tuition Fee,Award Costs,Christ Church Oxford,PIN055466,18000,
FCDO,CSC,10/12/2021,Tuition Fee,Award Costs,University of Glasgow,PIN055467,18000,
FCDO,CSC,10/12/2021,Tuition Fee,Award Costs,University of Glasgow,PIN055468,18000,
FCDO,CSC,10/12/2021,Tuition Fee,Award Costs,The University of Nottingham,PIN055470,2023.5,
FCDO,CSC,10/12/2021,Tuition Fee,Award Costs,University of Bath,PIN055471,14560,
FCDO,CSC,10/12/2021,Tuition Fee,Award Costs,University of Bristol,PIN055472,22500,
FCDO,CSC,10/12/2021,Tuition Fee,Award Costs,University of Bristol,PIN055473,18000,
FCDO,CSC,10/12/2021,Scholar Travel,Award Costs,University of Stirling,PIN055474,542.04,
FCDO,CSC,10/12/2021,Tuition Fee,Award Costs,Aston University,PIN055475,14080,
FCDO,CSC,10/12/2021,Tuition Fee,Award Costs,Bangor University,PIN055476,17800,
FCDO,CSC,10/12/2021,Tuition Fee,Award Costs,Bangor University,PIN055476,12800,
FCDO,CSC,10/12/2021,Scholar Allowances,Award Costs,Scholar,PIN055477,550,
FCDO,CSC,10/12/2021,Tuition Fee,Award Costs,University of Hull,PIN055479,14000,
FCDO,CSC,10/12/2021,Tuition Fee,Award Costs,Liverpool School of Tropical Medicine,PIN055482,16400,
FCDO,CSC,10/12/2021,Tuition Fee,Programme Costs,University of Stirling,PIN055483,3600,
FCDO,CSC,10/12/2021,Tuition Fee,Programme Costs,University of Stirling,PIN055484,2600,
FCDO,CSC,10/12/2021,Tuition Fee,Award Costs,Cardiff University,PIN055485,6280,
FCDO,CSC,17/12/2021,Visa Costs,Award Costs,University of Oxford,PIN055488,42,
FCDO,CSC,17/12/2021,Scholar Allowances,Award Costs,University of Oxford,PIN055488,405.3,
FCDO,CSC,17/12/2021,Scholar Travel,Award Costs,University of Oxford,PIN055488,2285,
FCDO,CSC,17/12/2021,Tuition Fee,Award Costs,University of Oxford,PIN055488,22500,
FCDO,CSC,17/12/2021,Scholar Allowances,Award Costs,Scholar,PIN055490,68,
FCDO,CSC,17/12/2021,Visa Costs,Award Costs,Scholar,PIN055490,473.2,
FCDO,CSC,17/12/2021,Scholar Travel,Award Costs,Bangor University,PIN055491,92.58,
FCDO,CSC,17/12/2021,Scholar Travel,Award Costs,Bangor University,PIN055491,1776.6,
FCDO,CSC,17/12/2021,Scholar Allowances,Award Costs,Linacre College Oxford,PIN055494,203.75,
FCDO,CSC,17/12/2021,Visa Costs,Award Costs,Linacre College Oxford,PIN055494,92.25,
FCDO,CSC,17/12/2021,Scholar Travel,Award Costs,Linacre College Oxford,PIN055494,725.74,
FCDO,CSC,17/12/2021,Tuition Fee,Award Costs,Brunel University,PIN055497,15884,
FCDO,CSC,17/12/2021,Tuition Fee,Award Costs,University of Aberdeen,PIN055499,15768,
FCDO,CSC,17/12/2021,Scholar Allowances,Award Costs,University of St  Andrews,PIN055502,450,
FCDO,CSC,17/12/2021,Scholar Allowances,Award Costs,University of St  Andrews,PIN055502,400,
FCDO,CSC,17/12/2021,Scholar Allowances,Award Costs,University of St  Andrews,PIN055502,475,
FCDO,CSC,17/12/2021,Scholar Travel,Award Costs,University of St  Andrews,PIN055502,1179.02,
FCDO,CSC,17/12/2021,Scholar Travel,Award Costs,University of St  Andrews,PIN055502,1401.16,
FCDO,CSC,17/12/2021,Scholar Allowances,Award Costs,University of St  Andrews,PIN055502,221,
FCDO,CSC,17/12/2021,Scholar Travel,Award Costs,"St Mary's University, Twickenham, London",PIN055504,530.9,
FCDO,CSC,17/12/2021,Scholar Travel,Award Costs,"St Mary's University, Twickenham, London",PIN055504,1079.63,
FCDO,CSC,17/12/2021,Scholar Allowances,Award Costs,"St Mary's University, Twickenham, London",PIN055504,225,
FCDO,CSC,17/12/2021,Scholar Allowances,Award Costs,"St Mary's University, Twickenham, London",PIN055504,200,
FCDO,CSC,17/12/2021,Scholar Allowances,Award Costs,"St Mary's University, Twickenham, London",PIN055504,155,
FCDO,CSC,17/12/2021,Scholar Travel,Award Costs,Queen Mary University of London,PIN055506,622.92,
FCDO,CSC,17/12/2021,Tuition Fee,Award Costs,Lancaster University,PIN055507,91636.3,
FCDO,CSC,17/12/2021,Visa Costs,Award Costs,University of Oxford,PIN055509,94.86,
FCDO,CSC,17/12/2021,Scholar Travel,Award Costs,University of Oxford,PIN055509,1013.9,
FCDO,CSC,17/12/2021,Scholar Travel,Award Costs,University of Reading,PIN055511,828.81,
FCDO,CSC,17/12/2021,Scholar Travel,Award Costs,University of Reading,PIN055511,40,
FCDO,CSC,17/12/2021,Visa Costs,Award Costs,University of Reading,PIN055511,101.43,
FCDO,CSC,17/12/2021,Scholar Allowances,Award Costs,University of Reading,PIN055511,170,
FCDO,CSC,17/12/2021,Scholar Allowances,Award Costs,University of Reading,PIN055511,200,
FCDO,CSC,17/12/2021,Scholar Allowances,Award Costs,University of Reading,PIN055511,925,
FCDO,CSC,17/12/2021,Scholar Travel,Award Costs,University of Reading,PIN055511,1877.13,
FCDO,CSC,17/12/2021,Tuition Fee,Award Costs,The University of Leeds,PIN055512,18000,
FCDO,CSC,17/12/2021,Tuition Fee,Award Costs,The University of Leeds,PIN055513,18000,
FCDO,CSC,17/12/2021,Tuition Fee,Award Costs,The University of Leeds,PIN055514,18000,
FCDO,CSC,17/12/2021,Scholar Allowances,Award Costs,Sheffield Hallam Univ,PIN055515,200,
FCDO,CSC,17/12/2021,Scholar Travel,Award Costs,Sheffield Hallam Univ,PIN055515,21.55,
FCDO,CSC,17/12/2021,Scholar Travel,Award Costs,Sheffield Hallam Univ,PIN055515,865.21,
FCDO,CSC,17/12/2021,Tuition Fee,Award Costs,The University of Leeds,PIN055516,14800,
FCDO,CSC,17/12/2021,Tuition Fee,Award Costs,The University of Leeds,PIN055517,18000,
FCDO,CSC,17/12/2021,Tuition Fee,Award Costs,The University of Leeds,PIN055518,18000,
FCDO,CSC,17/12/2021,Tuition Fee,Award Costs,The University of Leeds,PIN055519,18000,
FCDO,CSC,17/12/2021,Tuition Fee,Award Costs,The University of Leeds,PIN055520,16200,
FCDO,CSC,17/12/2021,Tuition Fee,Award Costs,The University of Leeds,PIN055521,14800,
FCDO,CSC,17/12/2021,Tuition Fee,Award Costs,The University of Leeds,PIN055522,18000,
FCDO,CSC,17/12/2021,Tuition Fee,Award Costs,Sheffield Hallam Univ,PIN055523,43380,
FCDO,CSC,17/12/2021,Scholar Allowances,Award Costs,Sheffield Hallam Univ,PIN055524,388.98,
FCDO,CSC,17/12/2021,Visa Costs,Award Costs,Sheffield Hallam Univ,PIN055524,286.9,
FCDO,CSC,17/12/2021,Tuition Fee,Award Costs,University of Stirling,PIN055525,4000,
FCDO,CSC,17/12/2021,Tuition Fee,Award Costs,University of Stirling,PIN055526,4000,
FCDO,CSC,17/12/2021,Tuition Fee,Award Costs,University of Stirling,PIN055527,3750,
FCDO,CSC,17/12/2021,Tuition Fee,Award Costs,University of Stirling,PIN055529,3750,
FCDO,CSC,17/12/2021,Tuition Fee,Award Costs,University of Stirling,PIN055530,3750,
FCDO,CSC,17/12/2021,Tuition Fee,Award Costs,University of Stirling,PIN055531,3750,
FCDO,CSC,17/12/2021,Tuition Fee,Award Costs,Lond Sch Hygiene & Tropical Me,PIN055532,18000,
FCDO,CSC,17/12/2021,Tuition Fee,Award Costs,Lond Sch Hygiene & Tropical Me,PIN055533,18000,
FCDO,CSC,17/12/2021,Tuition Fee,Award Costs,Lond Sch Hygiene & Tropical Me,PIN055534,18000,
FCDO,CSC,17/12/2021,Tuition Fee,Award Costs,Lond Sch Hygiene & Tropical Me,PIN055535,14624,
FCDO,CSC,17/12/2021,Tuition Fee,Award Costs,Lond Sch Hygiene & Tropical Me,PIN055536,14624,
FCDO,CSC,17/12/2021,Tuition Fee,Award Costs,Lond Sch Hygiene & Tropical Me,PIN055537,18000,
FCDO,CSC,17/12/2021,Tuition Fee,Award Costs,Cardiff University,PIN055538,6280,
FCDO,CSC,17/12/2021,Tuition Fee,Award Costs,Lond Sch Hygiene & Tropical Me,PIN055539,14624,
FCDO,CSC,17/12/2021,Tuition Fee,Award Costs,Lond Sch Hygiene & Tropical Me,PIN055540,18000,
FCDO,CSC,17/12/2021,Tuition Fee,Award Costs,Cardiff University,PIN055541,6280,
FCDO,CSC,17/12/2021,Tuition Fee,Award Costs,Lond Sch Hygiene & Tropical Me,PIN055542,14624,
FCDO,CSC,17/12/2021,Tuition Fee,Award Costs,Lond Sch Hygiene & Tropical Me,PIN055543,14624,
FCDO,CSC,17/12/2021,Tuition Fee,Award Costs,Cardiff University,PIN055544,6280,
FCDO,CSC,17/12/2021,Tuition Fee,Award Costs,Lond Sch Hygiene & Tropical Me,PIN055545,18000,
FCDO,CSC,17/12/2021,Tuition Fee,Award Costs,Lond Sch Hygiene & Tropical Me,PIN055546,18000,
FCDO,CSC,17/12/2021,Tuition Fee,Award Costs,Cardiff University,PIN055547,6280,
FCDO,CSC,17/12/2021,Tuition Fee,Award Costs,Lond Sch Hygiene & Tropical Me,PIN055548,18000,
FCDO,CSC,17/12/2021,Tuition Fee,Award Costs,Cardiff University,PIN055549,6280,
FCDO,CSC,17/12/2021,Tuition Fee,Award Costs,Lond Sch Hygiene & Tropical Me,PIN055550,14624,
FCDO,CSC,17/12/2021,Tuition Fee,Award Costs,Brunel University,PIN055551,19855,
FCDO,CSC,17/12/2021,Tuition Fee,Award Costs,University of Aberdeen,PIN055552,17200,
FCDO,CSC,17/12/2021,Tuition Fee,Award Costs,University of Exeter,PIN055553,12180,
FCDO,CSC,17/12/2021,Tuition Fee,Award Costs,University of Exeter,PIN055554,15520,
FCDO,CSC,17/12/2021,Tuition Fee,Award Costs,University of Exeter,PIN055555,16800,
FCDO,CSC,17/12/2021,Tuition Fee,Award Costs,University of Exeter,PIN055556,21900,
FCDO,CSC,17/12/2021,Tuition Fee,Award Costs,University of Exeter,PIN055557,19400,
FCDO,CSC,17/12/2021,Tuition Fee,Award Costs,University of Exeter,PIN055558,21900,
FCDO,CSC,17/12/2021,Tuition Fee,Award Costs,University of Exeter,PIN055559,10500,
FCDO,CSC,17/12/2021,Scholar Travel,Award Costs,University of Bristol,PIN055561,793.7,
FCDO,CSC,17/12/2021,Scholar Travel,Award Costs,University of Aberdeen,PIN055564,2769.06,
FCDO,CSC,17/12/2021,Scholar Allowances,Award Costs,University of Aberdeen,PIN055564,925,
FCDO,CSC,17/12/2021,Tuition Fee,Award Costs,University College London Fees,PIN055565,22500,
FCDO,CSC,17/12/2021,Scholar Allowances,Award Costs,University of Oxford,PIN055566,200,
FCDO,CSC,17/12/2021,Scholar Travel,Award Costs,University of Oxford,PIN055566,409.39,
FCDO,CSC,17/12/2021,Tuition Fee,Award Costs,Kings College London,PIN055567,18000,
FCDO,CSC,17/12/2021,Tuition Fee,Award Costs,Kings College London,PIN055568,18000,
FCDO,CSC,17/12/2021,Tuition Fee,Award Costs,Kings College London,PIN055569,18000,
FCDO,CSC,17/12/2021,Tuition Fee,Award Costs,Kings College London,PIN055570,17488,
FCDO,CSC,17/12/2021,Award Support Costs,Award Costs,Kings College London,PIN055571,5000,
FCDO,CSC,17/12/2021,Tuition Fee,Award Costs,Kings College London,PIN055571,18000,
FCDO,CSC,17/12/2021,Tuition Fee,Award Costs,University College London Fees,PIN055573,18000,
FCDO,CSC,17/12/2021,Tuition Fee,Award Costs,University College London Fees,PIN055574,18000,
FCDO,CSC,17/12/2021,Tuition Fee,Award Costs,University College London Fees,PIN055575,18000,
FCDO,CSC,17/12/2021,Tuition Fee,Award Costs,University College London Fees,PIN055576,18000,
FCDO,CSC,17/12/2021,Tuition Fee,Award Costs,University College London Fees,PIN055577,18000,
FCDO,CSC,17/12/2021,Tuition Fee,Award Costs,University College London Fees,PIN055578,18000,
FCDO,CSC,17/12/2021,Tuition Fee,Award Costs,University College London Fees,PIN055579,18000,
FCDO,CSC,17/12/2021,Tuition Fee,Award Costs,University College London Fees,PIN055580,18000,
FCDO,CSC,17/12/2021,Tuition Fee,Award Costs,University College London Fees,PIN055581,18000,
FCDO,CSC,17/12/2021,Tuition Fee,Award Costs,University College London Fees,PIN055582,22500,
FCDO,CSC,17/12/2021,Tuition Fee,Award Costs,University College London Fees,PIN055583,22500,
FCDO,CSC,17/12/2021,Tuition Fee,Award Costs,University College London Fees,PIN055584,22500,
FCDO,CSC,17/12/2021,Tuition Fee,Award Costs,University College London Fees,PIN055585,22500,
FCDO,CSC,17/12/2021,Tuition Fee,Award Costs,University College London Fees,PIN055586,22500,
FCDO,CSC,17/12/2021,Tuition Fee,Award Costs,University College London Fees,PIN055587,22500,
FCDO,CSC,17/12/2021,Tuition Fee,Award Costs,University College London Fees,PIN055588,22500,
FCDO,CSC,17/12/2021,Tuition Fee,Award Costs,University College London Fees,PIN055589,22500,
FCDO,CSC,17/12/2021,Tuition Fee,Award Costs,University College London Fees,PIN055590,22500,
FCDO,CSC,17/12/2021,Tuition Fee,Award Costs,University College London Fees,PIN055591,22500,
FCDO,CSC,17/12/2021,Tuition Fee,Award Costs,University College London Fees,PIN055592,22500,
FCDO,CSC,17/12/2021,Tuition Fee,Award Costs,The University of Edinburgh,PIN055593,18000,
FCDO,CSC,17/12/2021,Award Support Costs,Award Costs,Kings College London,PIN055594,5000,
FCDO,CSC,17/12/2021,Tuition Fee,Award Costs,Kings College London,PIN055594,18000,
FCDO,CSC,17/12/2021,Scholar Travel,Award Costs,The University of Leeds,PIN055595,3581.71,
FCDO,CSC,17/12/2021,Award Support Costs,Award Costs,Universty of Westminster,PIN055597,1500,
FCDO,CSC,17/12/2021,Tuition Fee,Award Costs,University of Greenwich,PIN055598,11600,
FCDO,CSC,17/12/2021,Scholar Allowances,Award Costs,The University of Leeds,PIN055601,450,
FCDO,CSC,17/12/2021,Scholar Travel,Award Costs,The University of Leeds,PIN055601,97.74,
FCDO,CSC,17/12/2021,Scholar Travel,Award Costs,The University of Leeds,PIN055601,855.74,
FCDO,CSC,17/12/2021,Tuition Fee,Award Costs,The University of Leeds,PIN055603,157250,
FCDO,CSC,17/12/2021,Tuition Fee,Award Costs,The University of Edinburgh,PIN055604,-1825,
FCDO,CSC,17/12/2021,Tuition Fee,Award Costs,Sheffield Hallam Univ,PIN055605,14556,
FCDO,CSC,17/12/2021,Tuition Fee,Award Costs,Lond Sch Hygiene & Tropical Me,PIN055606,14624,
FCDO,CSC,17/12/2021,Tuition Fee,Award Costs,Lond Sch Hygiene & Tropical Me,PIN055607,14624,
FCDO,CSC,17/12/2021,Alumni Engagement,Programme Costs,Pau Creative Ltd.,PIN055610,1536,
FCDO,CSC,17/12/2021,Miscellaneous,Programme Costs,Way With Words Group,PIN055611,705,
FCDO,CSC,17/12/2021,Alumni Engagement,Programme Costs,TFW Printers,PIN055612,660,
FCDO,CSC,20/12/2021,Scholar Stipend,Award Costs,Scholar,PIN055614,3399,
FCDO,CSC,20/12/2021,Scholar Stipend,Award Costs,Scholar,PIN055615,4170,
FCDO,CSC,20/12/2021,Scholar Stipend,Award Costs,Scholar,PIN055616,1252.99,
FCDO,CSC,20/12/2021,Scholar Stipend,Award Costs,Scholar,PIN055617,3399,
FCDO,CSC,20/12/2021,Scholar Stipend,Award Costs,Scholar,PIN055618,3399,
FCDO,CSC,20/12/2021,Scholar Stipend,Award Costs,Scholar,PIN055619,3399,
FCDO,CSC,20/12/2021,Scholar Stipend,Award Costs,Scholar,PIN055620,4170,
FCDO,CSC,20/12/2021,Scholar Stipend,Award Costs,Scholar,PIN055621,3399,
FCDO,CSC,20/12/2021,Scholar Stipend,Award Costs,Scholar,PIN055622,4170,
FCDO,CSC,20/12/2021,Scholar Stipend,Award Costs,Scholar,PIN055623,1133,
FCDO,CSC,20/12/2021,Scholar Stipend,Award Costs,Scholar,PIN055624,3399,
FCDO,CSC,20/12/2021,Scholar Stipend,Award Costs,Scholar,PIN055625,4170,
FCDO,CSC,20/12/2021,Scholar Stipend,Award Costs,Scholar,PIN055626,3399,
FCDO,CSC,20/12/2021,Scholar Stipend,Award Costs,Scholar,PIN055627,3399,
FCDO,CSC,20/12/2021,Scholar Stipend,Award Costs,Scholar,PIN055628,3399,
FCDO,CSC,20/12/2021,Scholar Stipend,Award Costs,Scholar,PIN055629,4170,
FCDO,CSC,20/12/2021,Scholar Stipend,Award Costs,Scholar,PIN055630,4170,
FCDO,CSC,20/12/2021,Scholar Stipend,Award Costs,Scholar,PIN055631,3399,
FCDO,CSC,20/12/2021,Scholar Stipend,Award Costs,Scholar,PIN055632,3399,
FCDO,CSC,20/12/2021,Scholar Stipend,Award Costs,Scholar,PIN055633,3399,
FCDO,CSC,20/12/2021,Scholar Stipend,Award Costs,Scholar,PIN055635,1699.5,
FCDO,CSC,20/12/2021,Scholar Stipend,Award Costs,Scholar,PIN055638,566.5,
FCDO,CSC,20/12/2021,Scholar Stipend,Award Costs,Scholar,PIN055639,3399,
FCDO,CSC,20/12/2021,Scholar Stipend,Award Costs,Scholar,PIN055640,4170,
FCDO,CSC,20/12/2021,Scholar Stipend,Award Costs,Scholar,PIN055641,3399,
FCDO,CSC,20/12/2021,Scholar Stipend,Award Costs,Scholar,PIN055642,3399,
FCDO,CSC,20/12/2021,Scholar Stipend,Award Costs,Scholar,PIN055643,4170,
FCDO,CSC,20/12/2021,Scholar Stipend,Award Costs,Scholar,PIN055644,3399,
FCDO,CSC,20/12/2021,Scholar Stipend,Award Costs,Scholar,PIN055645,1699.5,
FCDO,CSC,20/12/2021,Scholar Stipend,Award Costs,Scholar,PIN055646,3399,
FCDO,CSC,20/12/2021,Scholar Stipend,Award Costs,Scholar,PIN055647,4170,
FCDO,CSC,20/12/2021,Scholar Stipend,Award Costs,Scholar,PIN055648,3399,
FCDO,CSC,20/12/2021,Scholar Stipend,Award Costs,Scholar,PIN055649,3399,
FCDO,CSC,20/12/2021,Scholar Stipend,Award Costs,Scholar,PIN055650,3399,
FCDO,CSC,20/12/2021,Scholar Stipend,Award Costs,Scholar,PIN055651,3399,
FCDO,CSC,20/12/2021,Scholar Stipend,Award Costs,Scholar,PIN055652,639.34,
FCDO,CSC,20/12/2021,Scholar Stipend,Award Costs,Scholar,PIN055653,4170,
FCDO,CSC,20/12/2021,Scholar Stipend,Award Costs,Scholar,PIN055654,4170,
FCDO,CSC,20/12/2021,Scholar Stipend,Award Costs,Scholar,PIN055655,3399,
FCDO,CSC,20/12/2021,Scholar Stipend,Award Costs,Scholar,PIN055656,2266,
FCDO,CSC,20/12/2021,Scholar Stipend,Award Costs,Scholar,PIN055657,4170,
FCDO,CSC,20/12/2021,Scholar Stipend,Award Costs,Scholar,PIN055658,3399,
FCDO,CSC,20/12/2021,Scholar Stipend,Award Costs,Scholar,PIN055659,3399,
FCDO,CSC,20/12/2021,Scholar Stipend,Award Costs,Scholar,PIN055660,3399,
FCDO,CSC,20/12/2021,Scholar Stipend,Award Costs,Scholar,PIN055661,3399,
FCDO,CSC,20/12/2021,Scholar Stipend,Award Costs,Scholar,PIN055662,695,
FCDO,CSC,20/12/2021,Scholar Stipend,Award Costs,Scholar,PIN055663,3399,
FCDO,CSC,20/12/2021,Scholar Stipend,Award Costs,Scholar,PIN055664,3399,
FCDO,CSC,20/12/2021,Scholar Stipend,Award Costs,Scholar,PIN055665,4170,
FCDO,CSC,20/12/2021,Scholar Stipend,Award Costs,Scholar,PIN055666,4170,
FCDO,CSC,20/12/2021,Scholar Stipend,Award Costs,Scholar,PIN055667,4170,
FCDO,CSC,20/12/2021,Scholar Stipend,Award Costs,Scholar,PIN055668,3399,
FCDO,CSC,20/12/2021,Scholar Stipend,Award Costs,Scholar,PIN055669,3399,
FCDO,CSC,20/12/2021,Scholar Stipend,Award Costs,Scholar,PIN055670,4170,
FCDO,CSC,20/12/2021,Scholar Stipend,Award Costs,Scholar,PIN055671,4170,
FCDO,CSC,20/12/2021,Scholar Stipend,Award Costs,Scholar,PIN055672,3399,
FCDO,CSC,20/12/2021,Scholar Stipend,Award Costs,Scholar,PIN055673,1699.5,
FCDO,CSC,20/12/2021,Scholar Stipend,Award Costs,Scholar,PIN055674,4170,
FCDO,CSC,20/12/2021,Scholar Stipend,Award Costs,Scholar,PIN055675,3399,
FCDO,CSC,20/12/2021,Scholar Stipend,Award Costs,Scholar,PIN055676,3399,
FCDO,CSC,20/12/2021,Scholar Stipend,Award Costs,Scholar,PIN055677,3399,
FCDO,CSC,20/12/2021,Scholar Stipend,Award Costs,Scholar,PIN055678,632.8,
FCDO,CSC,20/12/2021,Scholar Stipend,Award Costs,Scholar,PIN055679,3399,
FCDO,CSC,20/12/2021,Scholar Stipend,Award Costs,Scholar,PIN055680,3399,
FCDO,CSC,20/12/2021,Scholar Stipend,Award Costs,Scholar,PIN055681,3399,
FCDO,CSC,20/12/2021,Scholar Stipend,Award Costs,Scholar,PIN055682,3399,
FCDO,CSC,20/12/2021,Scholar Stipend,Award Costs,Scholar,PIN055683,4170,
FCDO,CSC,20/12/2021,Scholar Stipend,Award Costs,Scholar,PIN055684,3399,
FCDO,CSC,20/12/2021,Scholar Stipend,Award Costs,Scholar,PIN055685,4170,
FCDO,CSC,20/12/2021,Scholar Stipend,Award Costs,Scholar,PIN055686,4170,
FCDO,CSC,20/12/2021,Scholar Stipend,Award Costs,Scholar,PIN055687,3399,
FCDO,CSC,20/12/2021,Scholar Stipend,Award Costs,Scholar,PIN055688,3399,
FCDO,CSC,20/12/2021,Scholar Stipend,Award Costs,Scholar,PIN055689,3399,
FCDO,CSC,20/12/2021,Scholar Stipend,Award Costs,Scholar,PIN055690,3399,
FCDO,CSC,20/12/2021,Scholar Stipend,Award Costs,Scholar,PIN055691,3399,
FCDO,CSC,20/12/2021,Scholar Stipend,Award Costs,Scholar,PIN055692,616.51,
FCDO,CSC,20/12/2021,Scholar Stipend,Award Costs,Scholar,PIN055693,1281.88,
FCDO,CSC,20/12/2021,Scholar Stipend,Award Costs,Scholar,PIN055694,3399,
FCDO,CSC,20/12/2021,Scholar Stipend,Award Costs,Scholar,PIN055695,3399,
FCDO,CSC,20/12/2021,Scholar Stipend,Award Costs,Scholar,PIN055696,2266,
FCDO,CSC,20/12/2021,Scholar Stipend,Award Costs,Scholar,PIN055697,3399,
FCDO,CSC,20/12/2021,Scholar Stipend,Award Costs,Scholar,PIN055698,3399,
FCDO,CSC,20/12/2021,Scholar Stipend,Award Costs,Scholar,PIN055699,3399,
FCDO,CSC,20/12/2021,Scholar Stipend,Award Costs,Scholar,PIN055700,3399,
FCDO,CSC,20/12/2021,Scholar Stipend,Award Costs,Scholar,PIN055701,4170,
FCDO,CSC,20/12/2021,Scholar Stipend,Award Costs,Scholar,PIN055702,3399,
FCDO,CSC,20/12/2021,Scholar Stipend,Award Costs,Scholar,PIN055703,1464,
FCDO,CSC,20/12/2021,Scholar Stipend,Award Costs,Scholar,PIN055704,4170,
FCDO,CSC,20/12/2021,Scholar Stipend,Award Costs,Scholar,PIN055705,3399,
FCDO,CSC,20/12/2021,Scholar Stipend,Award Costs,Scholar,PIN055706,3399,
FCDO,CSC,20/12/2021,Scholar Stipend,Award Costs,Scholar,PIN055707,566.5,
FCDO,CSC,20/12/2021,Scholar Stipend,Award Costs,Scholar,PIN055708,3399,
FCDO,CSC,20/12/2021,Scholar Stipend,Award Costs,Scholar,PIN055709,3399,
FCDO,CSC,20/12/2021,Scholar Stipend,Award Costs,Scholar,PIN055710,4170,
FCDO,CSC,20/12/2021,Scholar Stipend,Programme Costs,Scholar,PIN055711,1095.78,
FCDO,CSC,20/12/2021,Scholar Stipend,Award Costs,Scholar,PIN055712,4170,
FCDO,CSC,20/12/2021,Scholar Stipend,Award Costs,Scholar,PIN055713,3399,
FCDO,CSC,20/12/2021,Scholar Stipend,Award Costs,Scholar,PIN055714,3399,
FCDO,CSC,20/12/2021,Scholar Stipend,Award Costs,Scholar,PIN055715,3399,
FCDO,CSC,20/12/2021,Scholar Stipend,Award Costs,Scholar,PIN055716,3399,
FCDO,CSC,20/12/2021,Scholar Stipend,Award Costs,Scholar,PIN055717,3399,
FCDO,CSC,20/12/2021,Scholar Stipend,Award Costs,Scholar,PIN055718,4170,
FCDO,CSC,20/12/2021,Scholar Stipend,Award Costs,Scholar,PIN055719,4170,
FCDO,CSC,20/12/2021,Scholar Stipend,Award Costs,Scholar,PIN055720,4170,
FCDO,CSC,20/12/2021,Scholar Stipend,Award Costs,Scholar,PIN055721,4170,
FCDO,CSC,20/12/2021,Scholar Stipend,Award Costs,Scholar,PIN055722,4170,
FCDO,CSC,20/12/2021,Scholar Stipend,Award Costs,Scholar,PIN055723,3399,
FCDO,CSC,20/12/2021,Scholar Stipend,Award Costs,Scholar,PIN055724,2266,
FCDO,CSC,20/12/2021,Scholar Stipend,Award Costs,Scholar,PIN055725,3399,
FCDO,CSC,20/12/2021,Scholar Stipend,Award Costs,Scholar,PIN055726,4170,
FCDO,CSC,20/12/2021,Scholar Stipend,Award Costs,Scholar,PIN055727,3399,
FCDO,CSC,20/12/2021,Scholar Stipend,Award Costs,Scholar,PIN055728,4170,
FCDO,CSC,20/12/2021,Scholar Stipend,Award Costs,Scholar,PIN055729,4170,
FCDO,CSC,20/12/2021,Scholar Stipend,Award Costs,Scholar,PIN055730,4170,
FCDO,CSC,20/12/2021,Scholar Stipend,Award Costs,Scholar,PIN055731,3399,
FCDO,CSC,20/12/2021,Scholar Stipend,Award Costs,Scholar,PIN055732,3399,
FCDO,CSC,20/12/2021,Scholar Stipend,Award Costs,Scholar,PIN055733,3399,
FCDO,CSC,20/12/2021,Scholar Stipend,Award Costs,Scholar,PIN055734,1133,
FCDO,CSC,20/12/2021,Scholar Stipend,Award Costs,Scholar,PIN055735,1699.5,
FCDO,CSC,20/12/2021,Scholar Stipend,Award Costs,Scholar,PIN055736,4170,
FCDO,CSC,20/12/2021,Scholar Stipend,Award Costs,Scholar,PIN055737,1699.5,
FCDO,CSC,20/12/2021,Scholar Stipend,Award Costs,Scholar,PIN055738,4170,
FCDO,CSC,20/12/2021,Scholar Stipend,Award Costs,Scholar,PIN055739,4170,
FCDO,CSC,20/12/2021,Scholar Stipend,Award Costs,Scholar,PIN055740,3399,
FCDO,CSC,20/12/2021,Scholar Stipend,Award Costs,Scholar,PIN055741,3399,
FCDO,CSC,20/12/2021,Scholar Stipend,Award Costs,Scholar,PIN055742,1133,
FCDO,CSC,20/12/2021,Scholar Stipend,Award Costs,Scholar,PIN055746,4170,
FCDO,CSC,20/12/2021,Scholar Stipend,Award Costs,Scholar,PIN055747,3399,
FCDO,CSC,20/12/2021,Scholar Stipend,Award Costs,Scholar,PIN055748,4170,
FCDO,CSC,20/12/2021,Scholar Stipend,Award Costs,Scholar,PIN055749,3399,
FCDO,CSC,20/12/2021,Scholar Stipend,Award Costs,Scholar,PIN055750,3399,
FCDO,CSC,20/12/2021,Scholar Stipend,Award Costs,Scholar,PIN055751,3399,
FCDO,CSC,20/12/2021,Scholar Stipend,Award Costs,Scholar,PIN055752,3399,
FCDO,CSC,20/12/2021,Scholar Stipend,Award Costs,Scholar,PIN055753,3399,
FCDO,CSC,20/12/2021,Scholar Stipend,Award Costs,Scholar,PIN055754,3399,
FCDO,CSC,20/12/2021,Scholar Stipend,Award Costs,Scholar,PIN055755,4170,
FCDO,CSC,20/12/2021,Scholar Stipend,Award Costs,Scholar,PIN055756,1233.02,
FCDO,CSC,20/12/2021,Scholar Stipend,Award Costs,Scholar,PIN055758,1464,
FCDO,CSC,20/12/2021,Scholar Stipend,Award Costs,Scholar,PIN055759,4170,
FCDO,CSC,20/12/2021,Scholar Stipend,Award Costs,Scholar,PIN055760,3399,
FCDO,CSC,20/12/2021,Scholar Stipend,Award Costs,Scholar,PIN055761,3399,
FCDO,CSC,20/12/2021,Scholar Stipend,Award Costs,Scholar,PIN055762,4170,
FCDO,CSC,20/12/2021,Scholar Stipend,Award Costs,Scholar,PIN055763,3399,
FCDO,CSC,20/12/2021,Scholar Stipend,Award Costs,Scholar,PIN055764,3399,
FCDO,CSC,20/12/2021,Scholar Stipend,Award Costs,Scholar,PIN055765,3399,
FCDO,CSC,20/12/2021,Scholar Stipend,Award Costs,Scholar,PIN055766,4170,
FCDO,CSC,20/12/2021,Scholar Stipend,Award Costs,Scholar,PIN055767,3399,
FCDO,CSC,20/12/2021,Scholar Stipend,Award Costs,Scholar,PIN055768,3399,
FCDO,CSC,20/12/2021,Scholar Stipend,Award Costs,Scholar,PIN055769,4170,
FCDO,CSC,20/12/2021,Scholar Stipend,Award Costs,Scholar,PIN055770,3399,
FCDO,CSC,20/12/2021,Scholar Stipend,Award Costs,Scholar,PIN055771,1133,
FCDO,CSC,20/12/2021,Scholar Stipend,Award Costs,Scholar,PIN055772,3399,
FCDO,CSC,20/12/2021,Scholar Stipend,Award Costs,Scholar,PIN055773,3399,
FCDO,CSC,20/12/2021,Scholar Stipend,Award Costs,Scholar,PIN055774,4170,
FCDO,CSC,20/12/2021,Scholar Stipend,Award Costs,Scholar,PIN055775,558.36,
FCDO,CSC,20/12/2021,Scholar Stipend,Award Costs,Scholar,PIN055776,4170,
FCDO,CSC,20/12/2021,Scholar Stipend,Award Costs,Scholar,PIN055777,3399,
FCDO,CSC,20/12/2021,Scholar Stipend,Award Costs,Scholar,PIN055778,3399,
FCDO,CSC,20/12/2021,Scholar Stipend,Award Costs,Scholar,PIN055779,3399,
FCDO,CSC,20/12/2021,Scholar Stipend,Award Costs,Scholar,PIN055780,3399,
FCDO,CSC,20/12/2021,Scholar Stipend,Award Costs,Scholar,PIN055781,1390,
FCDO,CSC,20/12/2021,Scholar Stipend,Award Costs,Scholar,PIN055782,1699.5,
FCDO,CSC,20/12/2021,Scholar Stipend,Award Costs,Scholar,PIN055783,4170,
FCDO,CSC,20/12/2021,Scholar Stipend,Award Costs,Scholar,PIN055784,2266,
FCDO,CSC,20/12/2021,Scholar Stipend,Award Costs,Scholar,PIN055785,3399,
FCDO,CSC,20/12/2021,Scholar Stipend,Award Costs,Scholar,PIN055786,2780,
FCDO,CSC,20/12/2021,Scholar Stipend,Award Costs,Scholar,PIN055787,3399,
FCDO,CSC,20/12/2021,Scholar Stipend,Award Costs,Scholar,PIN055788,3399,
FCDO,CSC,20/12/2021,Scholar Stipend,Award Costs,Scholar,PIN055789,4170,
FCDO,CSC,20/12/2021,Scholar Stipend,Award Costs,Scholar,PIN055790,2085,
FCDO,CSC,20/12/2021,Scholar Stipend,Award Costs,Scholar,PIN055791,3399,
FCDO,CSC,20/12/2021,Scholar Stipend,Award Costs,Scholar,PIN055792,3399,
FCDO,CSC,20/12/2021,Scholar Stipend,Award Costs,Scholar,PIN055793,4170,
FCDO,CSC,20/12/2021,Scholar Stipend,Award Costs,Scholar,PIN055794,3399,
FCDO,CSC,20/12/2021,Scholar Stipend,Award Costs,Scholar,PIN055795,3399,
FCDO,CSC,20/12/2021,Scholar Stipend,Award Costs,Scholar,PIN055796,3399,
FCDO,CSC,20/12/2021,Scholar Stipend,Award Costs,Scholar,PIN055798,4170,
FCDO,CSC,20/12/2021,Scholar Stipend,Award Costs,Scholar,PIN055799,4170,
FCDO,CSC,20/12/2021,Scholar Stipend,Award Costs,Scholar,PIN055800,4170,
FCDO,CSC,20/12/2021,Scholar Stipend,Award Costs,Scholar,PIN055801,4170,
FCDO,CSC,20/12/2021,Scholar Stipend,Award Costs,Scholar,PIN055802,4170,
FCDO,CSC,20/12/2021,Scholar Stipend,Award Costs,Scholar,PIN055803,4170,
FCDO,CSC,20/12/2021,Scholar Stipend,Award Costs,Scholar,PIN055804,2266,
FCDO,CSC,20/12/2021,Scholar Stipend,Award Costs,Scholar,PIN055805,4170,
FCDO,CSC,20/12/2021,Scholar Stipend,Award Costs,Scholar,PIN055806,3399,
FCDO,CSC,20/12/2021,Scholar Stipend,Award Costs,Scholar,PIN055807,3399,
FCDO,CSC,20/12/2021,Scholar Stipend,Award Costs,Scholar,PIN055808,695,
FCDO,CSC,20/12/2021,Scholar Stipend,Award Costs,Scholar,PIN055809,3399,
FCDO,CSC,20/12/2021,Scholar Stipend,Award Costs,Scholar,PIN055810,4170,
FCDO,CSC,20/12/2021,Scholar Stipend,Award Costs,Scholar,PIN055811,4170,
FCDO,CSC,20/12/2021,Scholar Stipend,Award Costs,Scholar,PIN055812,4170,
FCDO,CSC,20/12/2021,Scholar Stipend,Award Costs,Scholar,PIN055813,3399,
FCDO,CSC,20/12/2021,Scholar Stipend,Award Costs,Scholar,PIN055814,566.5,
FCDO,CSC,20/12/2021,Scholar Stipend,Award Costs,Scholar,PIN055815,3399,
FCDO,CSC,20/12/2021,Scholar Stipend,Award Costs,Scholar,PIN055816,1050.35,
FCDO,CSC,20/12/2021,Scholar Stipend,Award Costs,Scholar,PIN055817,3399,
FCDO,CSC,20/12/2021,Scholar Stipend,Award Costs,Scholar,PIN055818,3399,
FCDO,CSC,20/12/2021,Scholar Stipend,Award Costs,Scholar,PIN055819,3399,
FCDO,CSC,20/12/2021,Scholar Stipend,Award Costs,Scholar,PIN055820,3399,
FCDO,CSC,20/12/2021,Scholar Stipend,Award Costs,Scholar,PIN055821,4170,
FCDO,CSC,20/12/2021,Scholar Stipend,Award Costs,Scholar,PIN055822,3399,
FCDO,CSC,20/12/2021,Scholar Stipend,Award Costs,Scholar,PIN055823,4170,
FCDO,CSC,20/12/2021,Scholar Stipend,Award Costs,Scholar,PIN055824,1840.25,
FCDO,CSC,20/12/2021,Scholar Stipend,Award Costs,Scholar,PIN055825,3399,
FCDO,CSC,20/12/2021,Scholar Stipend,Award Costs,Scholar,PIN055826,2266,
FCDO,CSC,20/12/2021,Scholar Stipend,Award Costs,Scholar,PIN055827,4170,
FCDO,CSC,20/12/2021,Scholar Stipend,Award Costs,Scholar,PIN055828,3399,
FCDO,CSC,20/12/2021,Scholar Stipend,Award Costs,Scholar,PIN055830,3399,
FCDO,CSC,20/12/2021,Scholar Stipend,Award Costs,Scholar,PIN055831,4170,
FCDO,CSC,20/12/2021,Scholar Stipend,Award Costs,Scholar,PIN055832,3399,
FCDO,CSC,20/12/2021,Scholar Stipend,Award Costs,Scholar,PIN055833,3399,
FCDO,CSC,20/12/2021,Scholar Stipend,Award Costs,Scholar,PIN055834,3399,
FCDO,CSC,20/12/2021,Scholar Stipend,Award Costs,Scholar,PIN055835,3399,
FCDO,CSC,20/12/2021,Scholar Stipend,Award Costs,Scholar,PIN055836,1699.5,
FCDO,CSC,20/12/2021,Scholar Stipend,Award Costs,Scholar,PIN055837,3399,
FCDO,CSC,20/12/2021,Scholar Stipend,Award Costs,Scholar,PIN055838,3399,
FCDO,CSC,20/12/2021,Scholar Stipend,Award Costs,Scholar,PIN055839,3399,
FCDO,CSC,20/12/2021,Scholar Stipend,Award Costs,Scholar,PIN055840,3399,
FCDO,CSC,20/12/2021,Scholar Stipend,Award Costs,Scholar,PIN055841,3399,
FCDO,CSC,20/12/2021,Scholar Stipend,Award Costs,Scholar,PIN055842,3399,
FCDO,CSC,20/12/2021,Scholar Stipend,Award Costs,Scholar,PIN055843,3399,
FCDO,CSC,20/12/2021,Scholar Stipend,Award Costs,Scholar,PIN055844,3399,
FCDO,CSC,20/12/2021,Scholar Stipend,Award Costs,Scholar,PIN055845,3399,
FCDO,CSC,20/12/2021,Scholar Stipend,Award Costs,Scholar,PIN055846,3399,
FCDO,CSC,20/12/2021,Scholar Stipend,Award Costs,Scholar,PIN055847,3399,
FCDO,CSC,20/12/2021,Scholar Stipend,Award Costs,Scholar,PIN055848,3399,
FCDO,CSC,20/12/2021,Scholar Stipend,Award Costs,Scholar,PIN055849,3399,
FCDO,CSC,20/12/2021,Scholar Stipend,Award Costs,Scholar,PIN055850,2266,
FCDO,CSC,20/12/2021,Scholar Stipend,Award Costs,Scholar,PIN055851,3399,
FCDO,CSC,20/12/2021,Scholar Stipend,Award Costs,Scholar,PIN055852,3399,
FCDO,CSC,20/12/2021,Scholar Stipend,Award Costs,Scholar,PIN055853,3399,
FCDO,CSC,20/12/2021,Scholar Stipend,Award Costs,Scholar,PIN055854,3399,
FCDO,CSC,20/12/2021,Scholar Stipend,Award Costs,Scholar,PIN055855,3399,
FCDO,CSC,20/12/2021,Scholar Stipend,Award Costs,Scholar,PIN055856,3399,
FCDO,CSC,20/12/2021,Scholar Stipend,Award Costs,Scholar,PIN055857,3399,
FCDO,CSC,20/12/2021,Scholar Stipend,Award Costs,Scholar,PIN055858,3399,
FCDO,CSC,20/12/2021,Scholar Stipend,Award Costs,Scholar,PIN055859,2266,
FCDO,CSC,20/12/2021,Scholar Stipend,Award Costs,Scholar,PIN055860,3399,
FCDO,CSC,20/12/2021,Scholar Stipend,Award Costs,Scholar,PIN055861,3399,
FCDO,CSC,20/12/2021,Scholar Stipend,Award Costs,Scholar,PIN055862,3399,
FCDO,CSC,20/12/2021,Scholar Stipend,Award Costs,Scholar,PIN055863,3399,
FCDO,CSC,20/12/2021,Scholar Stipend,Award Costs,Scholar,PIN055864,3399,
FCDO,CSC,20/12/2021,Scholar Stipend,Award Costs,Scholar,PIN055865,3399,
FCDO,CSC,20/12/2021,Scholar Stipend,Award Costs,Scholar,PIN055866,3399,
FCDO,CSC,20/12/2021,Scholar Stipend,Award Costs,Scholar,PIN055867,2266,
FCDO,CSC,20/12/2021,Scholar Stipend,Award Costs,Scholar,PIN055868,3399,
FCDO,CSC,20/12/2021,Scholar Stipend,Award Costs,Scholar,PIN055869,3399,
FCDO,CSC,20/12/2021,Scholar Stipend,Award Costs,Scholar,PIN055870,3399,
FCDO,CSC,20/12/2021,Scholar Stipend,Award Costs,Scholar,PIN055871,3399,
FCDO,CSC,20/12/2021,Scholar Stipend,Award Costs,Scholar,PIN055872,3399,
FCDO,CSC,20/12/2021,Scholar Stipend,Award Costs,Scholar,PIN055873,2266,
FCDO,CSC,20/12/2021,Scholar Stipend,Award Costs,Scholar,PIN055874,3399,
FCDO,CSC,20/12/2021,Scholar Stipend,Award Costs,Scholar,PIN055875,3399,
FCDO,CSC,20/12/2021,Scholar Stipend,Award Costs,Scholar,PIN055876,3399,
FCDO,CSC,20/12/2021,Scholar Stipend,Award Costs,Scholar,PIN055877,3399,
FCDO,CSC,20/12/2021,Scholar Stipend,Award Costs,Scholar,PIN055878,3399,
FCDO,CSC,20/12/2021,Scholar Stipend,Award Costs,Scholar,PIN055879,3399,
FCDO,CSC,20/12/2021,Scholar Stipend,Award Costs,Scholar,PIN055880,3399,
FCDO,CSC,20/12/2021,Scholar Stipend,Award Costs,Scholar,PIN055881,3399,
FCDO,CSC,20/12/2021,Scholar Stipend,Award Costs,Scholar,PIN055882,3399,
FCDO,CSC,20/12/2021,Scholar Stipend,Award Costs,Scholar,PIN055883,3399,
FCDO,CSC,20/12/2021,Scholar Stipend,Award Costs,Scholar,PIN055884,3399,
FCDO,CSC,20/12/2021,Scholar Stipend,Award Costs,Scholar,PIN055885,2266,
FCDO,CSC,20/12/2021,Scholar Stipend,Award Costs,Scholar,PIN055886,3399,
FCDO,CSC,20/12/2021,Scholar Stipend,Award Costs,Scholar,PIN055887,3399,
FCDO,CSC,20/12/2021,Scholar Stipend,Award Costs,Scholar,PIN055888,3399,
FCDO,CSC,20/12/2021,Scholar Stipend,Award Costs,Scholar,PIN055889,3399,
FCDO,CSC,20/12/2021,Scholar Stipend,Award Costs,Scholar,PIN055890,3399,
FCDO,CSC,20/12/2021,Scholar Stipend,Award Costs,Scholar,PIN055891,3399,
FCDO,CSC,20/12/2021,Scholar Stipend,Award Costs,Scholar,PIN055892,3399,
FCDO,CSC,20/12/2021,Scholar Stipend,Award Costs,Scholar,PIN055893,3399,
FCDO,CSC,20/12/2021,Scholar Stipend,Award Costs,Scholar,PIN055894,3399,
FCDO,CSC,20/12/2021,Scholar Stipend,Award Costs,Scholar,PIN055895,3399,
FCDO,CSC,20/12/2021,Scholar Stipend,Award Costs,Scholar,PIN055896,3399,
FCDO,CSC,20/12/2021,Scholar Stipend,Award Costs,Scholar,PIN055897,3399,
FCDO,CSC,20/12/2021,Scholar Stipend,Award Costs,Scholar,PIN055898,3399,
FCDO,CSC,20/12/2021,Scholar Stipend,Award Costs,Scholar,PIN055899,3399,
FCDO,CSC,20/12/2021,Scholar Stipend,Award Costs,Scholar,PIN055900,3399,
FCDO,CSC,20/12/2021,Scholar Stipend,Award Costs,Scholar,PIN055901,3399,
FCDO,CSC,20/12/2021,Scholar Stipend,Award Costs,Scholar,PIN055902,1133,
FCDO,CSC,20/12/2021,Scholar Stipend,Award Costs,Scholar,PIN055903,3399,
FCDO,CSC,20/12/2021,Scholar Stipend,Award Costs,Scholar,PIN055904,3399,
FCDO,CSC,20/12/2021,Scholar Stipend,Award Costs,Scholar,PIN055905,3399,
FCDO,CSC,20/12/2021,Scholar Stipend,Award Costs,Scholar,PIN055906,3399,
FCDO,CSC,20/12/2021,Scholar Stipend,Award Costs,Scholar,PIN055907,1133,
FCDO,CSC,20/12/2021,Scholar Stipend,Award Costs,Scholar,PIN055908,3399,
FCDO,CSC,20/12/2021,Scholar Stipend,Award Costs,Scholar,PIN055909,3399,
FCDO,CSC,20/12/2021,Scholar Stipend,Award Costs,Scholar,PIN055910,3399,
FCDO,CSC,20/12/2021,Scholar Stipend,Award Costs,Scholar,PIN055911,3399,
FCDO,CSC,20/12/2021,Scholar Stipend,Award Costs,Scholar,PIN055912,2266,
FCDO,CSC,20/12/2021,Scholar Stipend,Award Costs,Scholar,PIN055913,2266,
FCDO,CSC,20/12/2021,Scholar Stipend,Award Costs,Scholar,PIN055914,3399,
FCDO,CSC,20/12/2021,Scholar Stipend,Award Costs,Scholar,PIN055915,3399,
FCDO,CSC,20/12/2021,Scholar Stipend,Award Costs,Scholar,PIN055916,3399,
FCDO,CSC,20/12/2021,Scholar Stipend,Award Costs,Scholar,PIN055917,3399,
FCDO,CSC,20/12/2021,Scholar Stipend,Award Costs,Scholar,PIN055918,3399,
FCDO,CSC,20/12/2021,Scholar Stipend,Award Costs,Scholar,PIN055919,3399,
FCDO,CSC,20/12/2021,Scholar Stipend,Award Costs,Scholar,PIN055920,3399,
FCDO,CSC,20/12/2021,Scholar Stipend,Award Costs,Scholar,PIN055921,3399,
FCDO,CSC,20/12/2021,Scholar Stipend,Award Costs,Scholar,PIN055922,3399,
FCDO,CSC,20/12/2021,Scholar Stipend,Award Costs,Scholar,PIN055923,3399,
FCDO,CSC,20/12/2021,Scholar Stipend,Award Costs,Scholar,PIN055924,3399,
FCDO,CSC,20/12/2021,Scholar Stipend,Award Costs,Scholar,PIN055925,3399,
FCDO,CSC,20/12/2021,Scholar Stipend,Award Costs,Scholar,PIN055926,3399,
FCDO,CSC,20/12/2021,Scholar Stipend,Award Costs,Scholar,PIN055927,3399,
FCDO,CSC,20/12/2021,Scholar Stipend,Award Costs,Scholar,PIN055928,2266,
FCDO,CSC,20/12/2021,Scholar Stipend,Award Costs,Scholar,PIN055929,3399,
FCDO,CSC,20/12/2021,Scholar Stipend,Award Costs,Scholar,PIN055930,3399,
FCDO,CSC,20/12/2021,Scholar Stipend,Award Costs,Scholar,PIN055931,3399,
FCDO,CSC,20/12/2021,Scholar Stipend,Award Costs,Scholar,PIN055932,3399,
FCDO,CSC,20/12/2021,Scholar Stipend,Award Costs,Scholar,PIN055933,3399,
FCDO,CSC,20/12/2021,Scholar Stipend,Award Costs,Scholar,PIN055934,3399,
FCDO,CSC,20/12/2021,Scholar Stipend,Award Costs,Scholar,PIN055935,2266,
FCDO,CSC,20/12/2021,Scholar Stipend,Award Costs,Scholar,PIN055936,3399,
FCDO,CSC,20/12/2021,Scholar Stipend,Award Costs,Scholar,PIN055937,3399,
FCDO,CSC,20/12/2021,Scholar Stipend,Award Costs,Scholar,PIN055938,3399,
FCDO,CSC,20/12/2021,Scholar Stipend,Award Costs,Scholar,PIN055939,3399,
FCDO,CSC,20/12/2021,Scholar Stipend,Award Costs,Scholar,PIN055940,3399,
FCDO,CSC,20/12/2021,Scholar Stipend,Award Costs,Scholar,PIN055941,3399,
FCDO,CSC,20/12/2021,Scholar Stipend,Award Costs,Scholar,PIN055942,2266,
FCDO,CSC,20/12/2021,Scholar Stipend,Award Costs,Scholar,PIN055943,3399,
FCDO,CSC,20/12/2021,Scholar Stipend,Award Costs,Scholar,PIN055944,3399,
FCDO,CSC,20/12/2021,Scholar Stipend,Award Costs,Scholar,PIN055945,1133,
FCDO,CSC,20/12/2021,Scholar Stipend,Award Costs,Scholar,PIN055946,1133,
FCDO,CSC,20/12/2021,Scholar Stipend,Award Costs,Scholar,PIN055947,3399,
FCDO,CSC,20/12/2021,Scholar Stipend,Award Costs,Scholar,PIN055948,3399,
FCDO,CSC,20/12/2021,Scholar Stipend,Award Costs,Scholar,PIN055949,3399,
FCDO,CSC,20/12/2021,Scholar Stipend,Award Costs,Scholar,PIN055950,3399,
FCDO,CSC,20/12/2021,Scholar Stipend,Award Costs,Scholar,PIN055951,1133,
FCDO,CSC,20/12/2021,Scholar Stipend,Award Costs,Scholar,PIN055952,3399,
FCDO,CSC,20/12/2021,Scholar Stipend,Award Costs,Scholar,PIN055953,3399,
FCDO,CSC,20/12/2021,Scholar Stipend,Award Costs,Scholar,PIN055954,3399,
FCDO,CSC,20/12/2021,Scholar Stipend,Award Costs,Scholar,PIN055955,3399,
FCDO,CSC,20/12/2021,Scholar Stipend,Award Costs,Scholar,PIN055956,3399,
FCDO,CSC,20/12/2021,Scholar Stipend,Award Costs,Scholar,PIN055957,3399,
FCDO,CSC,20/12/2021,Scholar Stipend,Award Costs,Scholar,PIN055958,3399,
FCDO,CSC,20/12/2021,Scholar Stipend,Award Costs,Scholar,PIN055959,3399,
FCDO,CSC,20/12/2021,Scholar Stipend,Award Costs,Scholar,PIN055960,3399,
FCDO,CSC,20/12/2021,Scholar Stipend,Award Costs,Scholar,PIN055961,3399,
FCDO,CSC,20/12/2021,Scholar Stipend,Award Costs,Scholar,PIN055962,3399,
FCDO,CSC,20/12/2021,Scholar Stipend,Award Costs,Scholar,PIN055963,3399,
FCDO,CSC,20/12/2021,Scholar Stipend,Award Costs,Scholar,PIN055964,2266,
FCDO,CSC,20/12/2021,Scholar Stipend,Award Costs,Scholar,PIN055965,2266,
FCDO,CSC,20/12/2021,Scholar Stipend,Award Costs,Scholar,PIN055966,3399,
FCDO,CSC,20/12/2021,Scholar Stipend,Award Costs,Scholar,PIN055967,2266,
FCDO,CSC,20/12/2021,Scholar Stipend,Award Costs,Scholar,PIN055968,3399,
FCDO,CSC,20/12/2021,Scholar Stipend,Award Costs,Scholar,PIN055969,1464,
FCDO,CSC,20/12/2021,Scholar Stipend,Award Costs,Scholar,PIN055971,1133,
FCDO,CSC,20/12/2021,Scholar Stipend,Award Costs,Scholar,PIN055973,2199,
FCDO,CSC,20/12/2021,Scholar Stipend,Award Costs,Scholar,PIN055974,2199,
FCDO,CSC,20/12/2021,Scholar Stipend,Award Costs,Scholar,PIN055975,2928,
FCDO,CSC,20/12/2021,Scholar Stipend,Award Costs,Scholar,PIN055976,2928,
FCDO,CSC,20/12/2021,Scholar Stipend,Award Costs,Scholar,PIN055977,976,
FCDO,CSC,20/12/2021,Scholar Stipend,Award Costs,Scholar,PIN055978,2780,
FCDO,CSC,20/12/2021,Scholar Stipend,Award Costs,Scholar,PIN055979,3399,
FCDO,CSC,20/12/2021,Scholar Stipend,Award Costs,Scholar,PIN055980,929.91,
FCDO,CSC,20/12/2021,Scholar Stipend,Award Costs,Scholar,PIN055981,3399,
FCDO,CSC,20/12/2021,Scholar Stipend,Award Costs,Scholar,PIN055982,2266,
FCDO,CSC,20/12/2021,Scholar Stipend,Award Costs,Scholar,PIN055983,3399,
FCDO,CSC,20/12/2021,Scholar Stipend,Award Costs,Scholar,PIN055984,3399,
FCDO,CSC,20/12/2021,Scholar Stipend,Award Costs,Scholar,PIN055985,3399,
FCDO,CSC,20/12/2021,Scholar Stipend,Award Costs,Scholar,PIN055986,3399,
FCDO,CSC,20/12/2021,Scholar Stipend,Award Costs,Scholar,PIN055987,3399,
FCDO,CSC,20/12/2021,Scholar Stipend,Award Costs,Scholar,PIN055988,893.37,
FCDO,CSC,20/12/2021,Scholar Stipend,Award Costs,Scholar,PIN055989,2675.46,
FCDO,CSC,20/12/2021,Scholar Stipend,Award Costs,Scholar,PIN055990,1133,
FCDO,CSC,20/12/2021,Scholar Stipend,Award Costs,Scholar,PIN055991,3399,
FCDO,CSC,20/12/2021,Scholar Stipend,Award Costs,Scholar,PIN055992,3399,
FCDO,CSC,20/12/2021,Scholar Stipend,Award Costs,Scholar,PIN055993,3399,
FCDO,CSC,20/12/2021,Scholar Stipend,Award Costs,Scholar,PIN055994,2266,
FCDO,CSC,20/12/2021,Scholar Stipend,Award Costs,Scholar,PIN055995,2117.12,
FCDO,CSC,20/12/2021,Scholar Stipend,Award Costs,Scholar,PIN055996,1133,
FCDO,CSC,20/12/2021,Scholar Stipend,Award Costs,Scholar,PIN055997,3399,
FCDO,CSC,20/12/2021,Scholar Stipend,Award Costs,Scholar,PIN055998,3399,
FCDO,CSC,20/12/2021,Scholar Stipend,Award Costs,Scholar,PIN055999,3399,
FCDO,CSC,20/12/2021,Scholar Stipend,Award Costs,Scholar,PIN056000,1133,
FCDO,CSC,20/12/2021,Scholar Stipend,Award Costs,Scholar,PIN056001,4170,
FCDO,CSC,20/12/2021,Scholar Stipend,Programme Costs,Scholar,PIN056002,2303.22,
FCDO,CSC,20/12/2021,Scholar Stipend,Award Costs,Scholar,PIN056003,3399,
FCDO,CSC,20/12/2021,Scholar Stipend,Award Costs,Scholar,PIN056004,3399,
FCDO,CSC,20/12/2021,Scholar Stipend,Award Costs,Scholar,PIN056005,1133,
FCDO,CSC,20/12/2021,Scholar Stipend,Award Costs,Scholar,PIN056006,3399,
FCDO,CSC,20/12/2021,Scholar Stipend,Award Costs,Scholar,PIN056007,2266,
FCDO,CSC,20/12/2021,Scholar Stipend,Award Costs,Scholar,PIN056008,2952.31,
FCDO,CSC,20/12/2021,Scholar Stipend,Award Costs,Scholar,PIN056009,2915.09,
FCDO,CSC,20/12/2021,Scholar Stipend,Award Costs,Scholar,PIN056010,3399,
FCDO,CSC,20/12/2021,Scholar Stipend,Award Costs,Scholar,PIN056011,3399,
FCDO,CSC,20/12/2021,Scholar Stipend,Award Costs,Scholar,PIN056012,3399,
FCDO,CSC,20/12/2021,Scholar Stipend,Award Costs,Scholar,PIN056013,2266,
FCDO,CSC,20/12/2021,Scholar Stipend,Award Costs,Scholar,PIN056014,2266,
FCDO,CSC,20/12/2021,Scholar Stipend,Award Costs,Scholar,PIN056015,3399,
FCDO,CSC,20/12/2021,Scholar Stipend,Award Costs,Scholar,PIN056016,2266,
FCDO,CSC,20/12/2021,Scholar Stipend,Award Costs,Scholar,PIN056017,3399,
FCDO,CSC,20/12/2021,Scholar Stipend,Award Costs,Scholar,PIN056018,4170,
FCDO,CSC,20/12/2021,Scholar Stipend,Award Costs,Scholar,PIN056019,2780,
FCDO,CSC,20/12/2021,Scholar Stipend,Award Costs,Scholar,PIN056020,3399,
FCDO,CSC,20/12/2021,Scholar Stipend,Award Costs,Scholar,PIN056021,3399,
FCDO,CSC,20/12/2021,Scholar Stipend,Award Costs,Scholar,PIN056022,2266,
FCDO,CSC,20/12/2021,Scholar Stipend,Award Costs,Scholar,PIN056023,521.08,
FCDO,CSC,20/12/2021,Scholar Stipend,Award Costs,Scholar,PIN056024,3399,
FCDO,CSC,20/12/2021,Scholar Stipend,Award Costs,Scholar,PIN056025,1558.75,
FCDO,CSC,20/12/2021,Scholar Stipend,Award Costs,Scholar,PIN056026,2266,
FCDO,CSC,20/12/2021,Scholar Stipend,Award Costs,Scholar,PIN056027,2266,
FCDO,CSC,20/12/2021,Scholar Stipend,Award Costs,Scholar,PIN056028,3399,
FCDO,CSC,20/12/2021,Scholar Stipend,Award Costs,Scholar,PIN056029,595.58,
FCDO,CSC,20/12/2021,Advances Repayments,Award Costs,Scholar,PIN056031,-1042.16,
FCDO,CSC,20/12/2021,Advances Repayments,Award Costs,Scholar,PIN056032,-1575,
FCDO,CSC,20/12/2021,Advances Repayments,Award Costs,Scholar,PIN056035,-818.84,
FCDO,CSC,20/12/2021,Advances Repayments,Award Costs,Scholar,PIN056036,-1278.76,
FCDO,CSC,20/12/2021,Advances Repayments,Award Costs,Scholar,PIN056037,-685,
FCDO,CSC,20/12/2021,Advances Repayments,Award Costs,Scholar,PIN056039,-1042.16,
FCDO,CSC,20/12/2021,Advances Repayments,Award Costs,Scholar,PIN056040,-1966.8,
FCDO,CSC,20/12/2021,Scholar Allowances,Award Costs,Scholar,PIN056046,732,
FCDO,CSC,20/12/2021,Scholar Allowances,Award Costs,Scholar,PIN056047,732,
FCDO,CSC,20/12/2021,Scholar Allowances,Award Costs,Scholar,PIN056048,1455,
FCDO,CSC,20/12/2021,Scholar Allowances,Award Costs,Scholar,PIN056049,1092,
FCDO,CSC,20/12/2021,Scholar Allowances,Award Costs,Scholar,PIN056051,968,
FCDO,CSC,20/12/2021,Scholar Allowances,Award Costs,Scholar,PIN056052,732,
FCDO,CSC,20/12/2021,Scholar Allowances,Award Costs,Scholar,PIN056053,1452,
FCDO,CSC,20/12/2021,Scholar Allowances,Award Costs,Scholar,PIN056054,1092,
FCDO,CSC,20/12/2021,Scholar Allowances,Award Costs,Scholar,PIN056055,1092,
FCDO,CSC,20/12/2021,Scholar Allowances,Award Costs,Scholar,PIN056056,1092,
FCDO,CSC,20/12/2021,Scholar Allowances,Award Costs,Scholar,PIN056057,1452,
FCDO,CSC,20/12/2021,Scholar Allowances,Award Costs,Scholar,PIN056058,859.55,
FCDO,CSC,20/12/2021,Scholar Allowances,Award Costs,Scholar,PIN056059,732,
FCDO,CSC,20/12/2021,Scholar Allowances,Award Costs,Scholar,PIN056060,1092,
FCDO,CSC,20/12/2021,Scholar Allowances,Award Costs,Scholar,PIN056061,1092,
FCDO,CSC,20/12/2021,Scholar Allowances,Award Costs,Scholar,PIN056062,1455,
FCDO,CSC,20/12/2021,Scholar Allowances,Award Costs,Scholar,PIN056063,1452,
FCDO,CSC,20/12/2021,Scholar Allowances,Award Costs,Scholar,PIN056064,732,
FCDO,CSC,20/12/2021,Scholar Allowances,Award Costs,Scholar,PIN056065,1455,
FCDO,CSC,20/12/2021,Scholar Allowances,Award Costs,Scholar,PIN056066,1815,
FCDO,CSC,20/12/2021,Scholar Allowances,Award Costs,Scholar,PIN056067,732,
FCDO,CSC,20/12/2021,Scholar Allowances,Award Costs,Scholar,PIN056068,1092,
FCDO,CSC,20/12/2021,Scholar Allowances,Award Costs,Scholar,PIN056069,1092,
FCDO,CSC,20/12/2021,Scholar Allowances,Award Costs,Scholar,PIN056070,968,
FCDO,CSC,20/12/2021,Scholar Allowances,Award Costs,Scholar,PIN056071,2175,
FCDO,CSC,20/12/2021,Scholar Allowances,Award Costs,Scholar,PIN056072,732,
FCDO,CSC,20/12/2021,Scholar Allowances,Award Costs,Scholar,PIN056073,1092,
FCDO,CSC,20/12/2021,Scholar Allowances,Award Costs,Scholar,PIN056074,732,
FCDO,CSC,20/12/2021,Scholar Allowances,Award Costs,Scholar,PIN056075,1092,
FCDO,CSC,20/12/2021,Scholar Allowances,Award Costs,Scholar,PIN056076,1092,
FCDO,CSC,20/12/2021,Scholar Allowances,Award Costs,Scholar,PIN056077,1455,
FCDO,CSC,20/12/2021,Scholar Allowances,Award Costs,Scholar,PIN056078,732,
FCDO,CSC,20/12/2021,Scholar Allowances,Award Costs,Scholar,PIN056079,1452,
FCDO,CSC,20/12/2021,Scholar Allowances,Award Costs,Scholar,PIN056080,1074,
FCDO,CSC,20/12/2021,Scholar Allowances,Award Costs,Scholar,PIN056081,1395,
FCDO,CSC,20/12/2021,Scholar Allowances,Award Costs,Scholar,PIN056082,1455,
FCDO,CSC,20/12/2021,Scholar Allowances,Award Costs,Scholar,PIN056083,1092,
FCDO,CSC,20/12/2021,Scholar Allowances,Award Costs,Scholar,PIN056085,732,
FCDO,CSC,20/12/2021,Scholar Allowances,Award Costs,Scholar,PIN056086,732,
FCDO,CSC,20/12/2021,Scholar Allowances,Award Costs,Scholar,PIN056087,1455,
FCDO,CSC,20/12/2021,Scholar Allowances,Award Costs,Scholar,PIN056088,1092,
FCDO,CSC,20/12/2021,Scholar Allowances,Award Costs,Scholar,PIN056089,1092,
FCDO,CSC,20/12/2021,Scholar Allowances,Award Costs,Scholar,PIN056090,968,
FCDO,CSC,20/12/2021,Scholar Allowances,Award Costs,Scholar,PIN056091,1092,
FCDO,CSC,20/12/2021,Scholar Allowances,Award Costs,Scholar,PIN056092,728,
FCDO,CSC,20/12/2021,Scholar Allowances,Award Costs,Scholar,PIN056093,732,
FCDO,CSC,20/12/2021,Scholar Allowances,Award Costs,Scholar,PIN056094,732,
FCDO,CSC,20/12/2021,Scholar Allowances,Award Costs,Scholar,PIN056095,732,
FCDO,CSC,20/12/2021,Scholar Allowances,Award Costs,Scholar,PIN056096,732,
FCDO,CSC,20/12/2021,Scholar Allowances,Award Costs,Scholar,PIN056097,1092,
FCDO,CSC,20/12/2021,Scholar Allowances,Award Costs,Scholar,PIN056098,1092,
FCDO,CSC,20/12/2021,Scholar Allowances,Award Costs,Scholar,PIN056099,1452,
FCDO,CSC,20/12/2021,Scholar Allowances,Award Costs,Scholar,PIN056102,732,
FCDO,CSC,20/12/2021,Scholar Allowances,Award Costs,Scholar,PIN056103,1092,
FCDO,CSC,20/12/2021,Scholar Allowances,Award Costs,Scholar,PIN056104,732,
FCDO,CSC,20/12/2021,Scholar Allowances,Award Costs,Scholar,PIN056105,1092,
FCDO,CSC,20/12/2021,Scholar Allowances,Award Costs,Scholar,PIN056106,1452,
FCDO,CSC,20/12/2021,Scholar Allowances,Award Costs,Scholar,PIN056107,1092,
FCDO,CSC,20/12/2021,Scholar Allowances,Award Costs,Scholar,PIN056108,1455,
FCDO,CSC,20/12/2021,Scholar Allowances,Award Costs,Scholar,PIN056109,732,
FCDO,CSC,20/12/2021,Scholar Allowances,Award Costs,Scholar,PIN056110,1092,
FCDO,CSC,20/12/2021,Scholar Allowances,Award Costs,Scholar,PIN056111,732,
FCDO,CSC,20/12/2021,Scholar Allowances,Award Costs,Scholar,PIN056112,732,
FCDO,CSC,20/12/2021,Scholar Allowances,Award Costs,Scholar,PIN056113,1452,
FCDO,CSC,20/12/2021,Scholar Allowances,Award Costs,Scholar,PIN056114,732,
FCDO,CSC,20/12/2021,Scholar Allowances,Award Costs,Scholar,PIN056115,732,
FCDO,CSC,20/12/2021,Scholar Allowances,Award Costs,Scholar,PIN056116,1455,
FCDO,CSC,20/12/2021,Scholar Allowances,Award Costs,Scholar,PIN056117,1092,
FCDO,CSC,20/12/2021,Scholar Allowances,Award Costs,Scholar,PIN056118,1812,
FCDO,CSC,20/12/2021,Scholar Allowances,Award Costs,Scholar,PIN056119,1455,
FCDO,CSC,20/12/2021,Scholar Allowances,Award Costs,Scholar,PIN056120,732,
FCDO,CSC,20/12/2021,Scholar Allowances,Award Costs,Scholar,PIN056121,732,
FCDO,CSC,20/12/2021,Scholar Allowances,Award Costs,Scholar,PIN056122,732,
FCDO,CSC,20/12/2021,Scholar Allowances,Award Costs,Scholar,PIN056124,732,
FCDO,CSC,20/12/2021,Scholar Allowances,Award Costs,Scholar,PIN056126,732,
FCDO,CSC,20/12/2021,Scholar Allowances,Award Costs,Scholar,PIN056127,732,
FCDO,CSC,20/12/2021,Scholar Allowances,Award Costs,Scholar,PIN056128,732,
FCDO,CSC,20/12/2021,Scholar Allowances,Award Costs,Scholar,PIN056129,732,
FCDO,CSC,20/12/2021,Scholar Allowances,Award Costs,Scholar,PIN056130,732,
FCDO,CSC,20/12/2021,Scholar Allowances,Award Costs,Scholar,PIN056131,732,
FCDO,CSC,20/12/2021,Scholar Allowances,Award Costs,Scholar,PIN056132,-732,
FCDO,CSC,20/12/2021,Scholar Allowances,Award Costs,Scholar,PIN056133,576.18,
FCDO,CSC,20/12/2021,Scholar Allowances,Award Costs,Scholar,PIN056135,732,
FCDO,CSC,20/12/2021,Scholar Allowances,Award Costs,Scholar,PIN056136,732,
FCDO,CSC,20/12/2021,Scholar Allowances,Award Costs,Scholar,PIN056137,732,
FCDO,CSC,20/12/2021,Scholar Allowances,Award Costs,Scholar,PIN056138,732,
FCDO,CSC,20/12/2021,Scholar Allowances,Award Costs,Scholar,PIN056139,732,
FCDO,CSC,20/12/2021,Scholar Allowances,Award Costs,Scholar,PIN056140,732,
FCDO,CSC,20/12/2021,Scholar Allowances,Award Costs,Scholar,PIN056141,732,
FCDO,CSC,20/12/2021,Scholar Allowances,Award Costs,Scholar,PIN056142,732,
FCDO,CSC,20/12/2021,Scholar Allowances,Award Costs,Scholar,PIN056143,732,
FCDO,CSC,20/12/2021,Scholar Allowances,Award Costs,Scholar,PIN056144,732,
FCDO,CSC,20/12/2021,Scholar Allowances,Award Costs,Scholar,PIN056145,732,
FCDO,CSC,20/12/2021,Scholar Allowances,Award Costs,Scholar,PIN056146,732,
FCDO,CSC,20/12/2021,Scholar Allowances,Award Costs,Scholar,PIN056147,732,
FCDO,CSC,20/12/2021,Scholar Allowances,Award Costs,Scholar,PIN056148,732,
FCDO,CSC,20/12/2021,Scholar Allowances,Award Costs,Scholar,PIN056149,732,
FCDO,CSC,20/12/2021,Scholar Allowances,Award Costs,Scholar,PIN056150,732,
FCDO,CSC,20/12/2021,Scholar Allowances,Award Costs,Scholar,PIN056151,732,
FCDO,CSC,20/12/2021,Scholar Allowances,Award Costs,Scholar,PIN056152,732,
FCDO,CSC,20/12/2021,Scholar Allowances,Award Costs,Scholar,PIN056153,732,
FCDO,CSC,20/12/2021,Scholar Allowances,Award Costs,Scholar,PIN056155,732,
FCDO,CSC,20/12/2021,Scholar Allowances,Award Costs,Scholar,PIN056156,732,
FCDO,CSC,20/12/2021,Scholar Allowances,Award Costs,Scholar,PIN056157,732,
FCDO,CSC,20/12/2021,Scholar Allowances,Award Costs,Scholar,PIN056158,732,
FCDO,CSC,20/12/2021,Scholar Allowances,Award Costs,Scholar,PIN056159,732,
FCDO,CSC,20/12/2021,Scholar Allowances,Award Costs,Scholar,PIN056160,732,
FCDO,CSC,20/12/2021,Scholar Allowances,Award Costs,Scholar,PIN056163,732,
FCDO,CSC,20/12/2021,Scholar Allowances,Award Costs,Scholar,PIN056164,732,
FCDO,CSC,20/12/2021,Scholar Allowances,Award Costs,Scholar,PIN056165,732,
FCDO,CSC,20/12/2021,Scholar Allowances,Award Costs,Scholar,PIN056166,732,
FCDO,CSC,20/12/2021,Scholar Allowances,Award Costs,Scholar,PIN056167,732,
FCDO,CSC,20/12/2021,Scholar Allowances,Award Costs,Scholar,PIN056168,732,
FCDO,CSC,20/12/2021,Scholar Allowances,Award Costs,Scholar,PIN056169,732,
FCDO,CSC,20/12/2021,Scholar Allowances,Award Costs,Scholar,PIN056170,732,
FCDO,CSC,20/12/2021,Scholar Allowances,Award Costs,Scholar,PIN056173,732,
FCDO,CSC,20/12/2021,Scholar Allowances,Award Costs,Scholar,PIN056174,732,
FCDO,CSC,20/12/2021,Scholar Allowances,Award Costs,Scholar,PIN056175,732,
FCDO,CSC,20/12/2021,Scholar Allowances,Award Costs,Scholar,PIN056176,732,
FCDO,CSC,20/12/2021,Scholar Allowances,Award Costs,Scholar,PIN056177,732,
FCDO,CSC,20/12/2021,Scholar Allowances,Award Costs,Scholar,PIN056178,732,
FCDO,CSC,20/12/2021,Scholar Allowances,Award Costs,Scholar,PIN056179,732,
FCDO,CSC,20/12/2021,Scholar Allowances,Award Costs,Scholar,PIN056180,732,
FCDO,CSC,20/12/2021,Scholar Allowances,Award Costs,Scholar,PIN056181,732,
FCDO,CSC,20/12/2021,Scholar Allowances,Award Costs,Scholar,PIN056182,732,
FCDO,CSC,20/12/2021,Scholar Allowances,Award Costs,Scholar,PIN056183,732,
FCDO,CSC,20/12/2021,Scholar Allowances,Award Costs,Scholar,PIN056184,732,
FCDO,CSC,20/12/2021,Scholar Allowances,Award Costs,Scholar,PIN056185,732,
FCDO,CSC,20/12/2021,Scholar Allowances,Award Costs,Scholar,PIN056186,732,
FCDO,CSC,20/12/2021,Scholar Allowances,Award Costs,Scholar,PIN056187,732,
FCDO,CSC,20/12/2021,Scholar Allowances,Award Costs,Scholar,PIN056419,1450,
FCDO,CSC,20/12/2021,Scholar Allowances,Award Costs,Scholar,PIN056420,1500,
FCDO,CSC,20/12/2021,Scholar Allowances,Award Costs,Scholar,PIN056421,1500,
FCDO,CSC,20/12/2021,Scholar Allowances,Award Costs,Scholar,PIN056422,1151.5,
FCDO,CSC,20/12/2021,Scholar Allowances,Award Costs,Scholar,PIN056423,1940,
FCDO,CSC,20/12/2021,Scholar Allowances,Award Costs,Scholar,PIN056424,750,
FCDO,CSC,17/12/2021,Scholar Allowances,Award Costs,Scholar,PIN056550,552.08,
FCDO,CSC,17/12/2021,Scholar Allowances,Award Costs,Scholar,PIN056551,247.88,
FCDO,CSC,17/12/2021,Scholar Allowances,Award Costs,Scholar,PIN056551,504.02,
FCDO,CSC,17/12/2021,Scholar Stipend,Award Costs,Scholar,PIN056556,2145.56,
FCDO,CSC,17/12/2021,Scholar Allowances,Award Costs,Scholar,PIN056557,732,
FCDO,CSC,17/12/2021,Scholar Allowances,Award Costs,Scholar,PIN056557,732,
FCDO,CSC,17/12/2021,Scholar Allowances,Award Costs,Scholar,PIN056557,3399,
FCDO,CSC,17/12/2021,Scholar Allowances,Award Costs,Scholar,PIN056558,492.45,
FCDO,CSC,17/12/2021,Scholar Allowances,Award Costs,Scholar,PIN056558,734.65,
FCDO,CSC,17/12/2021,Scholar Allowances,Award Costs,Scholar,PIN056558,2286.93,
FCDO,CSC,17/12/2021,Scholar Stipend,Award Costs,Scholar,PIN056561,2130.66,
FCDO,CSC,21/12/2021,Scholar Advances,Award Costs,Scholar,PIN056562,1125,
FCDO,CSC,21/12/2021,Scholar Advances,Award Costs,Scholar,PIN056564,1956,
FCDO,CSC,23/12/2021,Tuition Fee,Award Costs,Lancaster University,PIN056567,54000,
FCDO,CSC,23/12/2021,Tuition Fee,Award Costs,Bangor University,PIN056568,4252.5,
FCDO,CSC,23/12/2021,Tuition Fee,Programme Costs,University of Strathclyde,PIN056569,4200,
FCDO,CSC,23/12/2021,Tuition Fee,Award Costs,The University of York,PIN056570,5220,
FCDO,CSC,23/12/2021,Tuition Fee,Award Costs,The University of York,PIN056571,5220,
FCDO,CSC,23/12/2021,Tuition Fee,Award Costs,The University of York,PIN056572,5220,
FCDO,CSC,23/12/2021,Tuition Fee,Award Costs,The University of York,PIN056573,5220,
FCDO,CSC,23/12/2021,Tuition Fee,Award Costs,The University of York,PIN056574,5220,
FCDO,CSC,23/12/2021,Tuition Fee,Award Costs,University of Worcester,PIN056575,14100,
FCDO,CSC,23/12/2021,Tuition Fee,Award Costs,Cranfield University,PIN056577,18000,
FCDO,CSC,23/12/2021,Tuition Fee,Award Costs,Cranfield University,PIN056578,17200,
FCDO,CSC,23/12/2021,Scholar Allowances,Award Costs,Scholar,PIN056579,600,
FCDO,CSC,23/12/2021,Tuition Fee,Award Costs,Liverpool School of Tropical Medicine,PIN056580,14000,
FCDO,CSC,23/12/2021,Tuition Fee,Award Costs,University of Sheffield,PIN056586,15560,
FCDO,CSC,23/12/2021,Tuition Fee,Award Costs,University of Sheffield,PIN056587,18000,
FCDO,CSC,23/12/2021,Award Support Costs,Award Costs,University of Sheffield,PIN056588,1500,
FCDO,CSC,23/12/2021,Tuition Fee,Award Costs,Cranfield University,PIN056589,21500,
FCDO,CSC,22/12/2021,Scholar Stipend,Award Costs,Scholar,PIN056594,1935,
FCDO,CSC,07/12/2021,Visa Costs,Award Costs,Scholar,PIN056595,104,
FCDO,CSC,07/12/2021,Visa Costs,Award Costs,Scholar,PIN056595,79,
FCDO,CSC,07/12/2021,Visa Costs,Award Costs,Scholar,PIN056595,79,
FCDO,CSC,07/12/2021,Visa Costs,Award Costs,Scholar,PIN056595,42,
FCDO,CSC,07/12/2021,Visa Costs,Award Costs,Scholar,PIN056595,42,
FCDO,CSC,07/12/2021,Visa Costs,Award Costs,Scholar,PIN056595,104,
FCDO,CSC,07/12/2021,Scholar Allowances,Award Costs,Scholar,PIN056595,439,
FCDO,CSC,07/12/2021,Scholar Stipend,Award Costs,Scholar,PIN056595,1319.12,
FCDO,CSC,07/12/2021,Scholar Allowances,Award Costs,Scholar,PIN056595,160.17,
FCDO,CSC,07/12/2021,Bank Charges,Programme Costs,MasterCard Prepaid Management Services Ltd,PIN056595,23.68,
FCDO,CSC,15/12/2021,Scholar Allowances,Award Costs,Scholar,PIN056596,439,
FCDO,CSC,15/12/2021,Scholar Stipend,Award Costs,Scholar,PIN056596,967.82,
FCDO,CSC,15/12/2021,Scholar Allowances,Award Costs,Scholar,PIN056596,439,
FCDO,CSC,15/12/2021,Scholar Allowances,Award Costs,Scholar,PIN056596,439,
FCDO,CSC,15/12/2021,Scholar Stipend,Award Costs,Scholar,PIN056596,448.69,
FCDO,CSC,15/12/2021,Scholar Allowances,Award Costs,Scholar,PIN056596,439,
FCDO,CSC,15/12/2021,Scholar Stipend,Award Costs,Scholar,PIN056596,967.82,
FCDO,CSC,15/12/2021,Scholar Allowances,Award Costs,Scholar,PIN056596,439,
FCDO,CSC,15/12/2021,Scholar Stipend,Award Costs,Scholar,PIN056596,820.92,
FCDO,CSC,15/12/2021,Bank Charges,Programme Costs,MasterCard Prepaid Management Services Ltd,PIN056596,54.01,
FCDO,CSC,17/12/2021,Scholar Allowances,Award Costs,Scholar,PIN056598,439,
FCDO,CSC,17/12/2021,Scholar Stipend,Award Costs,Scholar,PIN056598,483.91,
FCDO,CSC,17/12/2021,Scholar Allowances,Award Costs,Scholar,PIN056598,439,
FCDO,CSC,17/12/2021,Scholar Allowances,Award Costs,Scholar,PIN056598,439,
FCDO,CSC,17/12/2021,Scholar Stipend,Award Costs,Scholar,PIN056598,539.73,
FCDO,CSC,17/12/2021,Bank Charges,Programme Costs,MasterCard Prepaid Management Services Ltd,PIN056598,23.41,
FCDO,CSC,21/12/2021,Scholar Allowances,Award Costs,Scholar,PIN056599,439,
FCDO,CSC,21/12/2021,Scholar Stipend,Award Costs,Scholar,PIN056599,409.46,
FCDO,CSC,21/12/2021,Scholar Allowances,Award Costs,Scholar,PIN056599,199.12,
FCDO,CSC,21/12/2021,Bank Charges,Programme Costs,MasterCard Prepaid Management Services Ltd,PIN056599,10.47,
FCDO,CSC,22/12/2021,Scholar Allowances,Award Costs,Scholar,PIN056612,200,
FCDO,CSC,22/12/2021,Scholar Allowances,Award Costs,Scholar,PIN056612,200,
FCDO,CSC,22/12/2021,Scholar Allowances,Award Costs,Scholar,PIN056612,136,
FCDO,CSC,22/12/2021,Scholar Allowances,Award Costs,Scholar,PIN056612,136,
FCDO,CSC,22/12/2021,Scholar Allowances,Award Costs,Scholar,PIN056612,136,
FCDO,CSC,22/12/2021,Scholar Allowances,Award Costs,Scholar,PIN056612,136,
FCDO,CSC,22/12/2021,Scholar Allowances,Award Costs,Scholar,PIN056612,136,
FCDO,CSC,22/12/2021,Scholar Allowances,Award Costs,Scholar,PIN056612,136,
FCDO,CSC,22/12/2021,Scholar Allowances,Award Costs,Scholar,PIN056612,136,
FCDO,CSC,22/12/2021,Scholar Allowances,Award Costs,Scholar,PIN056612,136,
FCDO,CSC,22/12/2021,Scholar Allowances,Award Costs,Scholar,PIN056612,136,
FCDO,CSC,22/12/2021,Scholar Allowances,Award Costs,Scholar,PIN056612,136,
FCDO,CSC,22/12/2021,Scholar Allowances,Award Costs,Scholar,PIN056612,136,
FCDO,CSC,22/12/2021,Scholar Allowances,Award Costs,Scholar,PIN056612,97,
FCDO,CSC,22/12/2021,Scholar Allowances,Award Costs,Scholar,PIN056612,97,
FCDO,CSC,22/12/2021,Scholar Allowances,Award Costs,Scholar,PIN056612,95,
FCDO,CSC,22/12/2021,Scholar Allowances,Award Costs,Scholar,PIN056612,69,
FCDO,CSC,22/12/2021,Scholar Allowances,Award Costs,Scholar,PIN056612,69,
FCDO,CSC,22/12/2021,Scholar Allowances,Award Costs,Scholar,PIN056612,50,
FCDO,CSC,22/12/2021,Scholar Stipend,Award Costs,Scholar,PIN056612,439,
FCDO,CSC,22/12/2021,Scholar Stipend,Award Costs,Scholar,PIN056612,439,
FCDO,CSC,22/12/2021,Scholar Allowances,Award Costs,Scholar,PIN056612,225,
FCDO,CSC,22/12/2021,Scholar Allowances,Award Costs,Scholar,PIN056612,225,
FCDO,CSC,22/12/2021,Scholar Allowances,Award Costs,Scholar,PIN056612,225,
FCDO,CSC,22/12/2021,Scholar Allowances,Award Costs,Scholar,PIN056612,225,
FCDO,CSC,22/12/2021,Scholar Allowances,Award Costs,Scholar,PIN056612,225,
FCDO,CSC,22/12/2021,Scholar Stipend,Award Costs,Scholar,PIN056612,760.76,
FCDO,CSC,22/12/2021,Scholar Allowances,Award Costs,Scholar,PIN056612,488,
FCDO,CSC,22/12/2021,Scholar Stipend,Award Costs,Scholar,PIN056612,1464,
FCDO,CSC,22/12/2021,Scholar Stipend,Award Costs,Scholar,PIN056612,1464,
FCDO,CSC,22/12/2021,Scholar Stipend,Award Costs,Scholar,PIN056612,1464,
FCDO,CSC,22/12/2021,Scholar Stipend,Award Costs,Scholar,PIN056612,1216.49,
FCDO,CSC,22/12/2021,Scholar Stipend,Award Costs,Scholar,PIN056612,1376.82,
FCDO,CSC,22/12/2021,Scholar Stipend,Award Costs,Scholar,PIN056612,3399,
FCDO,CSC,22/12/2021,Scholar Stipend,Award Costs,Scholar,PIN056612,3399,
FCDO,CSC,22/12/2021,Scholar Stipend,Award Costs,Scholar,PIN056612,3399,
FCDO,CSC,22/12/2021,Scholar Stipend,Award Costs,Scholar,PIN056612,3047.62,
FCDO,CSC,22/12/2021,Scholar Stipend,Award Costs,Scholar,PIN056612,3399,
FCDO,CSC,22/12/2021,Scholar Stipend,Award Costs,Scholar,PIN056612,3399,
FCDO,CSC,22/12/2021,Scholar Stipend,Award Costs,Scholar,PIN056612,3399,
FCDO,CSC,22/12/2021,Scholar Stipend,Award Costs,Scholar,PIN056612,3399,
FCDO,CSC,22/12/2021,Scholar Stipend,Award Costs,Scholar,PIN056612,3399,
FCDO,CSC,22/12/2021,Scholar Stipend,Award Costs,Scholar,PIN056612,3399,
FCDO,CSC,22/12/2021,Scholar Stipend,Award Costs,Scholar,PIN056612,3399,
FCDO,CSC,22/12/2021,Scholar Stipend,Award Costs,Scholar,PIN056612,3399,
FCDO,CSC,22/12/2021,Scholar Stipend,Award Costs,Scholar,PIN056612,3399,
FCDO,CSC,22/12/2021,Scholar Stipend,Award Costs,Scholar,PIN056612,3399,
FCDO,CSC,22/12/2021,Scholar Stipend,Award Costs,Scholar,PIN056612,2638.24,
FCDO,CSC,22/12/2021,Scholar Stipend,Award Costs,Scholar,PIN056612,3399,
FCDO,CSC,22/12/2021,Scholar Stipend,Award Costs,Scholar,PIN056612,3399,
FCDO,CSC,22/12/2021,Scholar Stipend,Award Costs,Scholar,PIN056612,3399,
FCDO,CSC,22/12/2021,Scholar Stipend,Award Costs,Scholar,PIN056612,4170,
FCDO,CSC,22/12/2021,Scholar Stipend,Award Costs,Scholar,PIN056612,3010.4,
FCDO,CSC,22/12/2021,Scholar Stipend,Award Costs,Scholar,PIN056612,3399,
FCDO,CSC,22/12/2021,Scholar Stipend,Award Costs,Scholar,PIN056612,3399,
FCDO,CSC,22/12/2021,Scholar Stipend,Award Costs,Scholar,PIN056612,3399,
FCDO,CSC,22/12/2021,Scholar Stipend,Award Costs,Scholar,PIN056612,4170,
FCDO,CSC,22/12/2021,Scholar Stipend,Award Costs,Scholar,PIN056612,2266,
FCDO,CSC,22/12/2021,Scholar Stipend,Award Costs,Scholar,PIN056612,2824.35,
FCDO,CSC,22/12/2021,Scholar Stipend,Award Costs,Scholar,PIN056612,4170,
FCDO,CSC,22/12/2021,Scholar Stipend,Award Costs,Scholar,PIN056612,3399,
FCDO,CSC,22/12/2021,Scholar Stipend,Award Costs,Scholar,PIN056612,4170,
FCDO,CSC,22/12/2021,Scholar Stipend,Award Costs,Scholar,PIN056612,3399,
FCDO,CSC,22/12/2021,Scholar Stipend,Award Costs,Scholar,PIN056612,297.76,
FCDO,CSC,22/12/2021,Scholar Stipend,Award Costs,Scholar,PIN056612,3399,
FCDO,CSC,22/12/2021,Scholar Stipend,Award Costs,Scholar,PIN056612,3399,
FCDO,CSC,22/12/2021,Scholar Stipend,Award Costs,Scholar,PIN056612,3399,
FCDO,CSC,22/12/2021,Scholar Stipend,Award Costs,Scholar,PIN056612,3399,
FCDO,CSC,22/12/2021,Scholar Stipend,Award Costs,Scholar,PIN056612,3399,
FCDO,CSC,22/12/2021,Scholar Stipend,Award Costs,Scholar,PIN056612,3399,
FCDO,CSC,22/12/2021,Bank Charges,Programme Costs,MasterCard Prepaid Management Services Ltd,PIN056612,1351.47,
